Body Name,Body,Service Level,Expense Type,Expense Code,Narrative,Date,Transaction Number,Amount,Capital and Revenue,Supplier Name,Supplier ID
South Ribble Council,http://statistics.data.gov.uk/doc/local-authority/30UN,Housing,Cap Grant- Improve Grants,C570,DFG WORK ATADDRESS REDACTED AGREED TO PAY 50%COST - 1450.00,08/11/2017,0000435613,"1,450.00",Revenue,ABBI PROPERTY SERVICES LTD,131357
South Ribble Council,http://statistics.data.gov.uk/doc/local-authority/30UN,Information Services,Peripherals,4248,credit to cancel out full inv per NAME REDACTED no po raised,10/11/2017,0000435297,"9,027.72",Revenue,Access Group Ltd,132303
South Ribble Council,http://statistics.data.gov.uk/doc/local-authority/30UN,Information Services,Peripherals,4248,to go against credit 44754,01/11/2017,0000435452,419.50,Revenue,Access Group Ltd,132303
South Ribble Council,http://statistics.data.gov.uk/doc/local-authority/30UN,Information Services,Peripherals,4248,match off against credit - no po raised per NAME REDACTED,10/11/2017,0000435691,"17,216.43",Revenue,Access Group Ltd,132303
South Ribble Council,http://statistics.data.gov.uk/doc/local-authority/30UN,Information Services,Peripherals,4248,no po raised per NAME REDACTED as credit will cancel inv,10/11/2017,0000435692,839.00,Revenue,Access Group Ltd,132303
South Ribble Council,http://statistics.data.gov.uk/doc/local-authority/30UN,Information Services,Peripherals,4248,Envoy HR:  6 months licence extension for period 01/10/18 - 31/03/19,29/11/2017,0000435693,"8,809.58",Revenue,Access Group Ltd,132303
South Ribble Council,http://statistics.data.gov.uk/doc/local-authority/30UN,Information Services,Peripherals,4248,"Software Licence & Support for Selima applications,  Envoy - HR, Contract ref. SEL0143, for period 01/10/17 - 30/09/18",10/11/2017,0000435694,"17,619.15",Revenue,Access Group Ltd,132303
South Ribble Council,http://statistics.data.gov.uk/doc/local-authority/30UN,Information Services,Capital Expenditure,C234,"1 x Samsung Tab S3 4G @ 589.00 and 1 x Samsung Keyboard cover Tab S3 @ 73.00, as per quote",29/11/2017,0000436044,662.00,Revenue,ACS SYSTEMS UK LTD,00070166
South Ribble Council,http://statistics.data.gov.uk/doc/local-authority/30UN,Information Services,Capital Expenditure,C234,"2 x Samsung Tab S3 wifi only @ 527.00 each and 2 x Samsung Tab S3 keyboard cover grey @ 73.00 each, as per quote",29/11/2017,0000436044,"1,200.00",Revenue,ACS SYSTEMS UK LTD,00070166
South Ribble Council,http://statistics.data.gov.uk/doc/local-authority/30UN,Democratic Services,Other Expenses,463A,Remembrance Sunday - Sunday 12th November 2017 Audio Equipment,17/11/2017,0000435786,355.00,Revenue,ACTIVE AV LTD,131458
South Ribble Council,http://statistics.data.gov.uk/doc/local-authority/30UN,Revenues Plus,Financial,4811,post office trans,08/11/2017,0000435556,"1,050.76",Revenue,ALLPAY LTD,00122276
South Ribble Council,http://statistics.data.gov.uk/doc/local-authority/30UN,Revenues Plus,Financial,4811,ret cheques,08/11/2017,0000435556,4.20,Revenue,ALLPAY LTD,00122276
South Ribble Council,http://statistics.data.gov.uk/doc/local-authority/30UN,Revenues Plus,Financial,4811,paypoint,08/11/2017,0000435556,181.87,Revenue,ALLPAY LTD,00122276
South Ribble Council,http://statistics.data.gov.uk/doc/local-authority/30UN,Revenues Plus,Financial,4811,webconnect,08/11/2017,0000435556,46.56,Revenue,ALLPAY LTD,00122276
South Ribble Council,http://statistics.data.gov.uk/doc/local-authority/30UN,Regeneration,Advertising,4842,Christmas in Leyland leaflets x 5000  Express Print,24/11/2017,0000435880,330.00,Revenue,AMJ LTD (THE STATIONERY STORE),00096946
South Ribble Council,http://statistics.data.gov.uk/doc/local-authority/30UN,Housing,Cap Grant- Improve Grants,C570,DFG ADAPTATION WORK AT ADDRESS REDACTED AS PER YOUR QUOTE OF13937.39,22/11/2017,0000435911,"14,016.56",Revenue,APG DOMESTIC SERVICES,00061463
South Ribble Council,http://statistics.data.gov.uk/doc/local-authority/30UN,Regeneration,Capital Expenditure,C230,Repainting 2 bus shelters,15/11/2017,0000435748,680.00,Revenue,ARK WELDING LTD,130946
South Ribble Council,http://statistics.data.gov.uk/doc/local-authority/30UN,Democratic Services,Other Misc,4970,3 PLACES ON ABV - ABSENT VOTING COURSE ON 19 FEBRUARY 2018 NAMES REDACTED,29/11/2017,0000436061,551.00,Revenue,ASSOC OF ELECTORAL ADMINISTRATORS LTD,00014449
South Ribble Council,http://statistics.data.gov.uk/doc/local-authority/30UN,Information Services,Peripherals,4247,"Migration of voice circuits, as per quote",29/11/2017,0000436121,850.00,Revenue,ATOS IT Services UK Limited Re:unify Ent Comm Ltd,132380
South Ribble Council,http://statistics.data.gov.uk/doc/local-authority/30UN,Area 2 - Waste Transport/Eastern & Central Teams,Operational Furniture & Equip,4010,"Stihl FS94 RC-E Strimmer	1	243.00 Stihl BR600 Back Pack Blower	2	365.00 Stihl HS87 Single Sided Hedge cutter c/w Catcher",29/11/2017,0000435560,"1,333.00",Revenue,BALMERS GM LTD,00016023
South Ribble Council,http://statistics.data.gov.uk/doc/local-authority/30UN,Information Services,Stationery,413A,101-2761  Canon PG-545 Black inkjet cartridge,22/11/2017,0000435826,32.76,Revenue,BANNER GROUP LTD,00081485
South Ribble Council,http://statistics.data.gov.uk/doc/local-authority/30UN,Information Services,Stationery,413A,101-2762 Canon CL 546 inkjet cartridge,22/11/2017,0000435826,38.64,Revenue,BANNER GROUP LTD,00081485
South Ribble Council,http://statistics.data.gov.uk/doc/local-authority/30UN,Information Services,Stationery,4136,841-8351  White A5 2D Presentation Binder pk 6,22/11/2017,0000435826,166.74,Revenue,BANNER GROUP LTD,00081485
South Ribble Council,http://statistics.data.gov.uk/doc/local-authority/30UN,Information Services,Stationery,4136,162-5672 A5 5 part File Divider,22/11/2017,0000435826,19.60,Revenue,BANNER GROUP LTD,00081485
South Ribble Council,http://statistics.data.gov.uk/doc/local-authority/30UN,Information Services,Stationery,4136,647-7873 Magnetic Drywipe Board 1200 x 900 mm,22/11/2017,0000435826,60.63,Revenue,BANNER GROUP LTD,00081485
South Ribble Council,http://statistics.data.gov.uk/doc/local-authority/30UN,Information Services,Stationery,4136,9320076   Desk Tidy,22/11/2017,0000435826,0.33,Revenue,BANNER GROUP LTD,00081485
South Ribble Council,http://statistics.data.gov.uk/doc/local-authority/30UN,Information Services,Stationery,4136,9670022  Multipurpose Labels 14 per sheet,22/11/2017,0000435826,6.15,Revenue,BANNER GROUP LTD,00081485
South Ribble Council,http://statistics.data.gov.uk/doc/local-authority/30UN,Regeneration,Capital Expenditure,C230,Leyland Station parking and user surveys,10/11/2017,0000435715,"2,400.00",Revenue,Barrons,132059
South Ribble Council,http://statistics.data.gov.uk/doc/local-authority/30UN,Regeneration,Capital Expenditure,C234,Path installation at the horse sculpture,08/11/2017,0000435633,"3,541.00",Revenue,BARTON GRANGE GROUP LTD T/A BARTON GRAN,00082031
South Ribble Council,http://statistics.data.gov.uk/doc/local-authority/30UN,Development Enterprise & Comm Mgnt,Sports Dev Expenses,4890,Bikeability Level two certificates - pack of 50 @ 4.17 x 18 = 75 Bikeability Fix Certificates - pack of 50 @ 10.00 x 18 = 180 ,08/11/2017,0000434842,309.96,Revenue,BIKEABILITY TRUST,132360
South Ribble Council,http://statistics.data.gov.uk/doc/local-authority/30UN,Property Services,Rep & Maint Premises,2020,"Annual contract 2017 / 2018 for care plan 3 at Moss Side Depot, 81 Bison Place, Leyland",22/11/2017,0000435827,"1,721.90",Revenue,BRITISH GAS SERVICES (COMMERCIAL) LTD,00016214
South Ribble Council,http://statistics.data.gov.uk/doc/local-authority/30UN,Property Services,Rep & Maint Premises,2020,Annual contract 2017 / 2018 for care plan 3 at Leyland Market,22/11/2017,0000435828,"1,519.13",Revenue,BRITISH GAS SERVICES (COMMERCIAL) LTD,00016214
South Ribble Council,http://statistics.data.gov.uk/doc/local-authority/30UN,Property Services,Rep & Maint Premises,2020,"Annual contract 2017 / 2018 for care plan 3 at Holland House farm changing pavilion, Walton Le Dale",22/11/2017,0000435912,757.71,Revenue,BRITISH GAS SERVICES (COMMERCIAL) LTD,00016214
South Ribble Council,http://statistics.data.gov.uk/doc/local-authority/30UN,Area 2 - Waste Transport/Eastern & Central Teams,Contract Hire & Lease Costs,3212,PO closed in error see attached from lin,24/11/2017,0000435531,850.00,Revenue,C P DAVIDSON & SONS LTD,00043122
South Ribble Council,http://statistics.data.gov.uk/doc/local-authority/30UN,Revenues Plus,Peripherals,4242,Local Authority Data Sharing Programme - IT Costs,08/11/2017,0000435655,"1,825.00",Revenue,CAPITA BUSINESS SERVICES LTD,00117948
South Ribble Council,http://statistics.data.gov.uk/doc/local-authority/30UN,Regeneration,Professional Fees,4510,Professional fees in relation to West Paddock Community Masterplan,08/11/2017,0000435523,"10,000.00",Revenue,CAPITA PROPERTY AND INFRASTRUCTURE LTD,131347
South Ribble Council,http://statistics.data.gov.uk/doc/local-authority/30UN,HR & Communications,Consultancy Fees,4541,ONE-TO-ONE OUTPLACEMENT ,03/11/2017,0000435510,500.00,Revenue,CAREER EVOLUTION LTD,130259
South Ribble Council,http://statistics.data.gov.uk/doc/local-authority/30UN,Property Services,Rep & Maint Premises,2020,credit49029 to cancel out invoice,03/11/2017,0000435444,378.98,Revenue,CASCADE WATER SYSTEMS LTD,00063924
South Ribble Council,http://statistics.data.gov.uk/doc/local-authority/30UN,Planning,Other Misc,485R,REFUND OF REC;000106014877,15/11/2017,0000435635,390.00,Revenue,NAME REDACTED,132397
South Ribble Council,http://statistics.data.gov.uk/doc/local-authority/30UN,HR & Communications,Payroll Suspense,1741,2018 Annual Subscriptions  - start date 01/01/2018 NAME REDACTED - I00012299,24/11/2017,0000436015,180.00,Revenue,CHARTERED INST OF ENVIRONMENTAL HEALTH,00024963
South Ribble Council,http://statistics.data.gov.uk/doc/local-authority/30UN,HR & Communications,Payroll Suspense,1741,NAME REDACTED - I00013457,24/11/2017,0000436015,180.00,Revenue,CHARTERED INST OF ENVIRONMENTAL HEALTH,00024963
South Ribble Council,http://statistics.data.gov.uk/doc/local-authority/30UN,HR & Communications,Payroll Suspense,1741,NAME REDACTED  - I00013874,24/11/2017,0000436015,52.00,Revenue,CHARTERED INST OF ENVIRONMENTAL HEALTH,00024963
South Ribble Council,http://statistics.data.gov.uk/doc/local-authority/30UN,HR & Communications,Payroll Suspense,1741,NAME REDACTED - 000181042,24/11/2017,0000436015,180.00,Revenue,CHARTERED INST OF ENVIRONMENTAL HEALTH,00024963
South Ribble Council,http://statistics.data.gov.uk/doc/local-authority/30UN,HR & Communications,Payroll Suspense,1741,NAME REDACTED - I00013877,24/11/2017,0000436015,52.00,Revenue,CHARTERED INST OF ENVIRONMENTAL HEALTH,00024963
South Ribble Council,http://statistics.data.gov.uk/doc/local-authority/30UN,HR & Communications,Payroll Suspense,1741,NAME REDACTED - I00013876,24/11/2017,0000436015,52.00,Revenue,CHARTERED INST OF ENVIRONMENTAL HEALTH,00024963
South Ribble Council,http://statistics.data.gov.uk/doc/local-authority/30UN,HR & Communications,Payroll Suspense,1741,NAME REDACTED - I00006460,24/11/2017,0000436015,180.00,Revenue,CHARTERED INST OF ENVIRONMENTAL HEALTH,00024963
South Ribble Council,http://statistics.data.gov.uk/doc/local-authority/30UN,Democratic Services,Other Misc,4421,"Services provided for June 2017 UKPGE by Chorley Borough Council to include - Preparation, staffing of and hiring polling ",08/11/2017,0000435668,"4,799.29",Revenue,CHORLEY BOROUGH COUNCIL,00017352
South Ribble Council,http://statistics.data.gov.uk/doc/local-authority/30UN,Democratic Services,Other Misc,4423,"Services provided for June 2017 UKPGE by Chorley Borough Council to include - preparation, printing and delivery of poll cards",08/11/2017,0000435668,"3,080.01",Revenue,CHORLEY BOROUGH COUNCIL,00017352
South Ribble Council,http://statistics.data.gov.uk/doc/local-authority/30UN,Homelessness,Contributions,4730,Block booking October 2017 1093.68 + VAT,10/11/2017,0000435735,"1,093.68",Revenue,CHORLEY BOROUGH COUNCIL,00017352
South Ribble Council,http://statistics.data.gov.uk/doc/local-authority/30UN,Property Services,Capital Expenditure,C230,"Please carry out CCTV installation at the Civic centre as per your quotations 575513, 578151 & 565822",08/11/2017,0000435581,"9,874.00",Revenue,CHUBB LTD,00090625
South Ribble Council,http://statistics.data.gov.uk/doc/local-authority/30UN,Property Services,Capital Expenditure,C230,"Please carry out CCTV installation at the Civic centre as per your quotations 575513, 578151 & 565822",08/11/2017,0000435582,"1,432.00",Revenue,CHUBB LTD,00090625
South Ribble Council,http://statistics.data.gov.uk/doc/local-authority/30UN,Area 2 - Waste Transport/Eastern & Central Teams,Materials General,4040,"1 MIRROR ARM, 2 MIRRORS, 1 FITTING KIT - YP11CFM - JFC9308 - AW",10/11/2017,0000435669,288.08,Revenue,CICELEY COMMERCIALS LTD,00059381
South Ribble Council,http://statistics.data.gov.uk/doc/local-authority/30UN,HR & Communications,Advertising,4848,The Big Do & South Ribble Community Awards (PR) - 1.5hrs 26/10/2017,15/11/2017,0000435532,160.00,Revenue,COLIN HORNE,130145
South Ribble Council,http://statistics.data.gov.uk/doc/local-authority/30UN,HR & Communications,Other Misc,4851,The Big Do & South Ribble Community Awards (SRP) - 1.5hrs 26/10/2017,15/11/2017,0000435532,160.00,Revenue,COLIN HORNE,130145
South Ribble Council,http://statistics.data.gov.uk/doc/local-authority/30UN,Planning,Legal,4821,Professional advice for Lunds Lane Farm Advising in Conference - 2 hours prep 2 hours and 15mins in conference. 3 hours ,10/11/2017,0000435732,556.25,Revenue,Constanze Bell,132400
South Ribble Council,http://statistics.data.gov.uk/doc/local-authority/30UN,Housing,Cap Grant- Improve Grants,C570,"DFG WORKS AT ADDRESS REDACTED TOTAL COST18140.00 GRANT APPROVED16619.00 CUSTOMER CONTRIBUTION",17/11/2017,0000435835,"6,297.47",Revenue,Cornerstone Building & Maintenance Ltd,131383
South Ribble Council,http://statistics.data.gov.uk/doc/local-authority/30UN,Revenues Plus,Postage,4291,Mail Services - Postage for October 2017,01/11/2017,0000435448,484.58,Revenue,CRITIQOM,131053
South Ribble Council,http://statistics.data.gov.uk/doc/local-authority/30UN,Revenues Plus,Postage,4291,Mail Services - Postage for October 2017,08/11/2017,0000435624,637.25,Revenue,CRITIQOM,131053
South Ribble Council,http://statistics.data.gov.uk/doc/local-authority/30UN,Revenues Plus,Postage,4291,Postage for November 2017,22/11/2017,0000435892,712.01,Revenue,CRITIQOM,131053
South Ribble Council,http://statistics.data.gov.uk/doc/local-authority/30UN,Revenues Plus,Postage,4291,Postage for November 2017,29/11/2017,0000436066,383.61,Revenue,CRITIQOM,131053
South Ribble Council,http://statistics.data.gov.uk/doc/local-authority/30UN,Housing,Cap Grant- Improve Grants,C570,DFG WORKS TO BATHROOM AT ADDRESS REDACTED AS PER YOUR QUOTE COST 4224.00,10/11/2017,0000435717,"4,224.00",Revenue,Croston Plumbing & Heating Ltd,131545
South Ribble Council,http://statistics.data.gov.uk/doc/local-authority/30UN,Information Services,Peripherals,4245,Annual purchase order for Disaster Recovery Services for period 01/04/17 - 31/03/18,03/11/2017,0000435518,"2,503.99",Revenue,DAISY IT CONTINUITY and RESILIENCE SERVICES LTD,131708
South Ribble Council,http://statistics.data.gov.uk/doc/local-authority/30UN,Area 2 - Waste Transport/Eastern & Central Teams,External Contractors Charges,4570,Spec repair - VO65KPZ - JFC9508 - ,03/11/2017,0000435481,305.28,Revenue,DENNIS EAGLE LTD,00019774
South Ribble Council,http://statistics.data.gov.uk/doc/local-authority/30UN,Area 2 - Waste Transport/Eastern & Central Teams,External Contractors Charges,4570,SPEC REPAIR - JFC9583 - VN10DKL - ,29/11/2017,0000435906,"4,202.84",Revenue,DENNIS EAGLE LTD,00019774
South Ribble Council,http://statistics.data.gov.uk/doc/local-authority/30UN,Area 2 - Waste Transport/Eastern & Central Teams,External Contractors Charges,4570,SPEC REPAIR - VK09AHJ - JFC9698 - ,29/11/2017,0000436000,921.36,Revenue,DENNIS EAGLE LTD,00019774
South Ribble Council,http://statistics.data.gov.uk/doc/local-authority/30UN,Neighbourhood Admin & Support,Clothing- Uniforms & Laundry,4410,1 PAIR SIZE 10 CLIMBING BOOTS (ARBORTECH SCAFELL LIGHT GREEN),03/11/2017,0000435446,179.00,Revenue,DICK LEIGH,00026534
South Ribble Council,http://statistics.data.gov.uk/doc/local-authority/30UN,Neighbourhood Admin & Support,Clothing- Uniforms & Laundry,4410,OCEAN POLYESTER PRUSSIK ROPE 10M DIA X .9MT LONG HIGH BOTH ENDS,03/11/2017,0000435446,16.25,Revenue,DICK LEIGH,00026534
South Ribble Council,http://statistics.data.gov.uk/doc/local-authority/30UN,Neighbourhood Admin & Support,Clothing- Uniforms & Laundry,4410,Delivery charge,03/11/2017,0000435446,3.00,Revenue,DICK LEIGH,00026534
South Ribble Council,http://statistics.data.gov.uk/doc/local-authority/30UN,Neighbourhood Admin & Support,Clothing- Uniforms & Laundry,4410,CLIMBING BOOTS SIZE 7 (HIAX PROTECTOR PRO),03/11/2017,0000435446,195.00,Revenue,DICK LEIGH,00026534
South Ribble Council,http://statistics.data.gov.uk/doc/local-authority/30UN,Regeneration,Other Misc,4861,Contribution towards Christmas Performances run by Double R Arts at Penwortham Priory Youth Centre on Priory Lane in Dec,08/11/2017,0000435602,500.00,Revenue,DOUBLE R ARTS,130525
South Ribble Council,http://statistics.data.gov.uk/doc/local-authority/30UN,Area 3 - Parks/Leyland East West,Capital Expenditure,C230,"IMPROVEMENT WORKS TO WESTERN SIDE OF WITHY GROVE PARK, BAMBER BRIDGE",08/11/2017,0000435482,"18,853.41",Revenue,Dowhigh Ltd,132324
South Ribble Council,http://statistics.data.gov.uk/doc/local-authority/30UN,Area 3 - Parks/Leyland East West,Capital Expenditure,C230,"IMPROVEMENT WORKS TO WESTERN SIDE OF WITHY GROVE PARK, BAMBER BRIDGE",08/11/2017,0000435483,"50,319.65",Revenue,Dowhigh Ltd,132324
South Ribble Council,http://statistics.data.gov.uk/doc/local-authority/30UN,Information Services,Peripherals,4260,Peripherals,08/11/2017,0000435631,"2,456.59",Revenue,EE Ltd,131653
South Ribble Council,http://statistics.data.gov.uk/doc/local-authority/30UN,Area 2 - Waste Transport/Eastern & Central Teams,Materials General,4040,"1 WATER PUMP, VAC PUMP AND GASKETS - PJ04XBR - JFC9616 - AW",22/11/2017,0000435895,515.73,Revenue,EVANSHALSHAW (PRESTON) LTD,00021076
South Ribble Council,http://statistics.data.gov.uk/doc/local-authority/30UN,Area 2 - Waste Transport/Eastern & Central Teams,Materials General,4040,1 SET BLADES - PMR19A2 - JFC9273 - BO,22/11/2017,0000434475,47.33,Revenue,F R SHARROCK LTD,00034539
South Ribble Council,http://statistics.data.gov.uk/doc/local-authority/30UN,Area 2 - Waste Transport/Eastern & Central Teams,Materials General,4040,"1 AIR FILTER, 1 HOUSING - PMR24A2 - JFC9260 - BO",22/11/2017,0000434475,62.13,Revenue,F R SHARROCK LTD,00034539
South Ribble Council,http://statistics.data.gov.uk/doc/local-authority/30UN,Area 2 - Waste Transport/Eastern & Central Teams,Materials General,4040,1 BLADE CARRIER - PO16HMU - JFC9272 - BO,22/11/2017,0000434475,429.68,Revenue,F R SHARROCK LTD,00034539
South Ribble Council,http://statistics.data.gov.uk/doc/local-authority/30UN,Area 2 - Waste Transport/Eastern & Central Teams,Materials General,4040,FILTER KIT - PO16HNA - JFC9536,22/11/2017,0000435646,259.34,Revenue,F R SHARROCK LTD,00034539
South Ribble Council,http://statistics.data.gov.uk/doc/local-authority/30UN,Area 2 - Waste Transport/Eastern & Central Teams,Materials General,4040,FILTER KIT - PO16HMV - JFC9528,22/11/2017,0000435646,59.71,Revenue,F R SHARROCK LTD,00034539
South Ribble Council,http://statistics.data.gov.uk/doc/local-authority/30UN,Area 2 - Waste Transport/Eastern & Central Teams,Materials General,4040,FILTER KIT - PO16HMX - JFC9530,22/11/2017,0000435646,42.05,Revenue,F R SHARROCK LTD,00034539
South Ribble Council,http://statistics.data.gov.uk/doc/local-authority/30UN,Area 2 - Waste Transport/Eastern & Central Teams,Materials General,4040,FILTER KIT - PO16HMY - JFC9532,22/11/2017,0000435646,15.84,Revenue,F R SHARROCK LTD,00034539
South Ribble Council,http://statistics.data.gov.uk/doc/local-authority/30UN,Area 2 - Waste Transport/Eastern & Central Teams,Materials General,4040,FILTER KIT - PO16HMZ - JFC9534,22/11/2017,0000435646,318.24,Revenue,F R SHARROCK LTD,00034539
South Ribble Council,http://statistics.data.gov.uk/doc/local-authority/30UN,Area 2 - Waste Transport/Eastern & Central Teams,Materials General,4040,FILTER KIT - PO16HMU - JFC9526,22/11/2017,0000435646,182.90,Revenue,F R SHARROCK LTD,00034539
South Ribble Council,http://statistics.data.gov.uk/doc/local-authority/30UN,Area 2 - Waste Transport/Eastern & Central Teams,Materials General,4040,15 X SOLE PLATES - BIN 1265,22/11/2017,0000435646,177.99,Revenue,F R SHARROCK LTD,00034539
South Ribble Council,http://statistics.data.gov.uk/doc/local-authority/30UN,Area 2 - Waste Transport/Eastern & Central Teams,Materials General,4040,36 X BEARINGS - BIN 1138,22/11/2017,0000435646,168.98,Revenue,F R SHARROCK LTD,00034539
South Ribble Council,http://statistics.data.gov.uk/doc/local-authority/30UN,Planning,Balance Sheet,0030,Community Infrastructure Levy (CIL) Payment for Parish Council re: planning application 07/2016/0069/FUL,22/11/2017,0000435947,"2,257.05",Revenue,FARINGTON PARISH COUNCIL,00031105
South Ribble Council,http://statistics.data.gov.uk/doc/local-authority/30UN,Area 2 - Waste Transport/Eastern & Central Teams,External Contractors Charges,4570,RESIDUAL WASTE OCTOBER 2017,22/11/2017,0000435903,"41,598.94",Revenue,FCC Environment Services (UK) Ltd,131612
South Ribble Council,http://statistics.data.gov.uk/doc/local-authority/30UN,Area 2 - Waste Transport/Eastern & Central Teams,External Contractors Charges,4570,DRY RECYCLABLE NON TERRACED OCTOBER 2017,22/11/2017,0000435903,"42,600.51",Revenue,FCC Environment Services (UK) Ltd,131612
South Ribble Council,http://statistics.data.gov.uk/doc/local-authority/30UN,Area 2 - Waste Transport/Eastern & Central Teams,External Contractors Charges,4570,DRY RECYCLABLE TERRACED OCTOBER 2017,22/11/2017,0000435903,"2,023.12",Revenue,FCC Environment Services (UK) Ltd,131612
South Ribble Council,http://statistics.data.gov.uk/doc/local-authority/30UN,Area 2 - Waste Transport/Eastern & Central Teams,External Contractors Charges,4570,ORGANIC WASTE NON TERRACED OCTOBER 2017,22/11/2017,0000435903,"29,527.11",Revenue,FCC Environment Services (UK) Ltd,131612
South Ribble Council,http://statistics.data.gov.uk/doc/local-authority/30UN,Area 2 - Waste Transport/Eastern & Central Teams,External Contractors Charges,4570,SCHEDULE 2 PROPERTIES OCTOBER 2017,22/11/2017,0000435903,"1,689.25",Revenue,FCC Environment Services (UK) Ltd,131612
South Ribble Council,http://statistics.data.gov.uk/doc/local-authority/30UN,Area 2 - Waste Transport/Eastern & Central Teams,External Contractors Charges,4570,COMMERCIAL WASTE OCTOBER 2017,22/11/2017,0000435903,"6,617.78",Revenue,FCC Environment Services (UK) Ltd,131612
South Ribble Council,http://statistics.data.gov.uk/doc/local-authority/30UN,Area 2 - Waste Transport/Eastern & Central Teams,External Contractors Charges,4570,BULKY WASTE OCTOBER 2017,22/11/2017,0000435903,914.85,Revenue,FCC Environment Services (UK) Ltd,131612
South Ribble Council,http://statistics.data.gov.uk/doc/local-authority/30UN,Area 2 - Waste Transport/Eastern & Central Teams,External Contractors Charges,4570,WEEE COLLECTIONS OCTOBER 2017,22/11/2017,0000435903,342.06,Revenue,FCC Environment Services (UK) Ltd,131612
South Ribble Council,http://statistics.data.gov.uk/doc/local-authority/30UN,Area 2 - Waste Transport/Eastern & Central Teams,External Contractors Charges,4570,CLINICAL WASTE COLLECTIONS,22/11/2017,0000435903,582.54,Revenue,FCC Environment Services (UK) Ltd,131612
South Ribble Council,http://statistics.data.gov.uk/doc/local-authority/30UN,Area 2 - Waste Transport/Eastern & Central Teams,External Contractors Charges,4570,ADDITIONAL PROPERTIES OCTOBER 2017,22/11/2017,0000435903,"1,345.35",Revenue,FCC Environment Services (UK) Ltd,131612
South Ribble Council,http://statistics.data.gov.uk/doc/local-authority/30UN,Area 2 - Waste Transport/Eastern & Central Teams,External Contractors Charges,4570,REPLACEMENT BINS OCTOBER 2017,22/11/2017,0000435903,"5,000.00",Revenue,FCC Environment Services (UK) Ltd,131612
South Ribble Council,http://statistics.data.gov.uk/doc/local-authority/30UN,Area 2 - Waste Transport/Eastern & Central Teams,Balance Sheet,0030,RETENTION,22/11/2017,0000435903,"-2,654.54",Revenue,FCC Environment Services (UK) Ltd,131612
South Ribble Council,http://statistics.data.gov.uk/doc/local-authority/30UN,Area 2 - Waste Transport/Eastern & Central Teams,Balance Sheet,0030,RETENTION,22/11/2017,0000435903,"-3,707.54",Revenue,FCC Environment Services (UK) Ltd,131612
South Ribble Council,http://statistics.data.gov.uk/doc/local-authority/30UN,Area 3 - Parks/Leyland East West,Grounds Maint Cntrctrs Chgs,4657,25 10M MULTI COLOURED CONNECTABLE DIAMOND LIGHTS 80 LEDS BLACK CABLE 3 X 10M BLACK EXTENSION LEADS,10/11/2017,0000435398,453.69,Revenue,FESTIVE LIGHTS,130235
South Ribble Council,http://statistics.data.gov.uk/doc/local-authority/30UN,Customer Contact,Clothing- Uniforms & Laundry,4410,Supply the following all in Charcoal pinstripe - all Avignon Mens Jacket-  AMJ1  Size  42`` chest  x 1 Mens Trousers- Single Pleat,08/11/2017,0000435557,301.70,Revenue,First Corporate Clothing Limited,132166
South Ribble Council,http://statistics.data.gov.uk/doc/local-authority/30UN,Planning,Other Misc,4851,2 x Designjet Toners 761 Dark Grey,22/11/2017,0000435673,280.16,Revenue,GCS UK ASSOCIATES LTD,130671
South Ribble Council,http://statistics.data.gov.uk/doc/local-authority/30UN,Area 2 - Waste Transport/Eastern & Central Teams,External Contractors Charges,4570,SPEC REPAIR - TMF04TR - JFC9312 - PD,03/11/2017,0000435497,586.40,Revenue,GIBSONS GARDEN MACHINERY LTD,00059051
South Ribble Council,http://statistics.data.gov.uk/doc/local-authority/30UN,Housing,Contributions,4730,Gas servicing for winter warmth scheme,17/11/2017,0000435819,255.00,Revenue,GOS Heating Ltd,131387
South Ribble Council,http://statistics.data.gov.uk/doc/local-authority/30UN,Property Services,Rep & Maint Premises,2020,To remove door header panels to the 1st floor Civic Centre as per your quotation ref EGR0005,24/11/2017,0000436039,"1,150.00",Revenue,Greenfield Removals,132425
South Ribble Council,http://statistics.data.gov.uk/doc/local-authority/30UN,Area 1 - Penwortham Western Parishes,Contract Hire & Lease Costs,3212,Sweeper Hire Monday 16/10/2017 for 7 weeks 620 Per/week,01/11/2017,0000435466,620.00,Revenue,GULLIVERS TRUCK HIRE LTD,130582
South Ribble Council,http://statistics.data.gov.uk/doc/local-authority/30UN,Area 1 - Penwortham Western Parishes,Contract Hire & Lease Costs,3212,Sweeper Hire Monday 16/10/2017 for 7 weeks 620 Per/week,15/11/2017,0000435749,620.00,Revenue,GULLIVERS TRUCK HIRE LTD,130582
South Ribble Council,http://statistics.data.gov.uk/doc/local-authority/30UN,Area 1 - Penwortham Western Parishes,Contract Hire & Lease Costs,3212,Sweeper Hire Monday 16/10/2017 for 7 weeks 620 Per/week,15/11/2017,0000435754,620.00,Revenue,GULLIVERS TRUCK HIRE LTD,130582
South Ribble Council,http://statistics.data.gov.uk/doc/local-authority/30UN,Area 2 - Waste Transport/Eastern & Central Teams,Materials General,4040,Various filters,22/11/2017,0000435904,293.43,Revenue,H & J SERVICES LTD,00114446
South Ribble Council,http://statistics.data.gov.uk/doc/local-authority/30UN,Revenues Plus,Balance Sheet,0001,,08/11/2017,0000435647,320.00,Revenue,H & S Restaurants Ltd,132399
South Ribble Council,http://statistics.data.gov.uk/doc/local-authority/30UN,Neighbourhood Admin & Support,Vehicle Running Costs,3132,"15,000 LITRES DIESEL (@0.9642 PENCE PER LITRE)",10/11/2017,0000435699,"14,463.96",Revenue,Hall Fuels trading name of WFL (UK) Ltd,00116758
South Ribble Council,http://statistics.data.gov.uk/doc/local-authority/30UN,Neighbourhood Admin & Support,Vehicle Running Costs,3134,2500 litres GAS OIL ( 51.44 pence per litre),29/11/2017,0000435972,"1,286.00",Revenue,Hall Fuels trading name of WFL (UK) Ltd,00116758
South Ribble Council,http://statistics.data.gov.uk/doc/local-authority/30UN,Neighbourhood Admin & Support,Vehicle Running Costs,3132,"15,000 litres DIESEL (@98.33 pence per litre)",29/11/2017,0000436117,"11,781.60",Revenue,Hall Fuels trading name of WFL (UK) Ltd,00116758
South Ribble Council,http://statistics.data.gov.uk/doc/local-authority/30UN,Regeneration,Other Misc,4851,Hire of Hotel & Catering Quote - 64251,01/11/2017,0000435475,"3,199.17",Revenue,Hallmark Hotel Preston Leyland,00090117
South Ribble Council,http://statistics.data.gov.uk/doc/local-authority/30UN,Housing,Cap Grant- Improve Grants,C570,50% OF DFG WORK COSTS AT ADDRESS REDACTED,24/11/2017,0000436032,886.33,Revenue,Hartwell  Property Services LTD,131998
South Ribble Council,http://statistics.data.gov.uk/doc/local-authority/30UN,Shared Financial Services,Balance Sheet,0140,,10/11/2017,0000435290,"2,183.00",Revenue,HM REVENUE & CUSTOMS,00024837
South Ribble Council,http://statistics.data.gov.uk/doc/local-authority/30UN,Regeneration,Professional Fees,4510,corten fingerposts,29/11/2017,0000435997,676.16,Revenue,Hornbeck Ltd T/A Landmark,132367
South Ribble Council,http://statistics.data.gov.uk/doc/local-authority/30UN,HR & Communications,Training Expense-Course Fees,1402,Safeguarding Children & Adults at Risk 30th November 2017 - Manchester Delegate - NAME REDACTED,22/11/2017,0000435856,250.00,Revenue,HOUSING QUALITY NETWORK,00119810
South Ribble Council,http://statistics.data.gov.uk/doc/local-authority/30UN,Planning,Balance Sheet,0030,Community Infrastructure Levy (CIL) Payment for Parish Council re: Planning Application 07/2015/1845/FUL,22/11/2017,0000435933,"41,062.61",Revenue,HUTTON PARISH COUNCIL,00023566
South Ribble Council,http://statistics.data.gov.uk/doc/local-authority/30UN,Information Services,Peripherals,4248,Service Requests App Annual Maintenance for period 30/09/17 - 29/09/18,24/11/2017,0000435173,600.00,Revenue,IDOX PLC,00104485
South Ribble Council,http://statistics.data.gov.uk/doc/local-authority/30UN,Information Services,Peripherals,4248,Planning Inspections App Maintenance and Development Enforcement App Maintenance @ 600 each,24/11/2017,0000435474,"1,200.00",Revenue,IDOX PLC,00104485
South Ribble Council,http://statistics.data.gov.uk/doc/local-authority/30UN,HR & Communications,Training Expense-Course Fees,1405,"UNIFORM SYSTEM SUPERVISOR COURSE, UNIFORM DOCUMENT TEMPLATE COURSE & UNIFORM REPORT WRITING ",22/11/2017,0000435952,"3,500.00",Revenue,IDOX PLC,00104485
South Ribble Council,http://statistics.data.gov.uk/doc/local-authority/30UN,Information Services,Capital Expenditure,C234,South Ribble Apps Bundle 160517,24/11/2017,0000435987,"4,500.00",Revenue,IDOX PLC,00104485
South Ribble Council,http://statistics.data.gov.uk/doc/local-authority/30UN,Revenues Plus,Peripherals,4242,South Ribble Lalpac Data Migration - ref 130617,29/11/2017,0000435988,"1,900.00",Revenue,IDOX PLC,00104485
South Ribble Council,http://statistics.data.gov.uk/doc/local-authority/30UN,Information Services,Capital Expenditure,C234,South Ribble Apps Bundle 160517,24/11/2017,0000435989,"4,500.00",Revenue,IDOX PLC,00104485
South Ribble Council,http://statistics.data.gov.uk/doc/local-authority/30UN,Information Services,Peripherals,4248,"Consultancy - Online applications configuration and Online Payment Adaptor configuration, as per quotation",24/11/2017,0000435990,"1,900.00",Revenue,IDOX PLC,00104485
South Ribble Council,http://statistics.data.gov.uk/doc/local-authority/30UN,Information Services,Peripherals,4241,"Symantec Messaging Gateway 10.6 per User Sub Lic Gov Band A Essential 12 months - 03/12/17 - 02/12/18, as per quote",29/11/2017,0000436059,848.00,Revenue,IML Technology,132172
South Ribble Council,http://statistics.data.gov.uk/doc/local-authority/30UN,Revenues Plus,Professional Fees,4510,"RV Finder, Charnock Farm, Wigan Road",01/11/2017,0000435461,"1,700.00",Revenue,Inform CPI Ltd,131666
South Ribble Council,http://statistics.data.gov.uk/doc/local-authority/30UN,Revenues Plus,Professional Fees,4510,"RV Finder - 1 Western Avenue, Matrix Park",01/11/2017,0000435470,500.00,Revenue,Inform CPI Ltd,131666
South Ribble Council,http://statistics.data.gov.uk/doc/local-authority/30UN,Revenues Plus,Professional Fees,4510,"RV Finder Reedfield Place, Bamber Bridge and Brown Hill Lane, Longton",08/11/2017,0000435656,573.75,Revenue,Inform CPI Ltd,131666
South Ribble Council,http://statistics.data.gov.uk/doc/local-authority/30UN,Revenues Plus,Professional Fees,4510,"R V Finder - BANASTRES AT BANK, NOOK LANE, BAMBER BRIDGE,",17/11/2017,0000435787,"1,975.00",Revenue,Inform CPI Ltd,131666
South Ribble Council,http://statistics.data.gov.uk/doc/local-authority/30UN,Revenues Plus,Professional Fees,4510,"RV Finder - Carrier Retail, Wigan Road",17/11/2017,0000435865,"1,625.00",Revenue,Inform CPI Ltd,131666
South Ribble Council,http://statistics.data.gov.uk/doc/local-authority/30UN,Information Services,Financial,4813,"Data Protection Registration renewal for South Ribble Borough Council - registration reference Z496241X, due 21/12/17",15/11/2017,0000435775,500.00,Revenue,INFORMATION COMMISSIONER,00053293
South Ribble Council,http://statistics.data.gov.uk/doc/local-authority/30UN,Neighbourhood Admin & Support,Materials General,4040,QC10 - QUICK SET CONCRETE -,29/11/2017,0000436074,"1,228.64",Revenue,INSTARMAC GROUP PLC,00024905
South Ribble Council,http://statistics.data.gov.uk/doc/local-authority/30UN,HR & Communications,Payroll Suspense,1741,IOL Membership,01/11/2017,0000435396,300.00,Revenue,INSTITUTE OF LICENSING,132386
South Ribble Council,http://statistics.data.gov.uk/doc/local-authority/30UN,Development Enterprise & Comm Mgnt,Other Misc,4851,X 3 day hire cost for Hiab including the vehicle and operator. @ 450 per day Total cost 1350,10/11/2017,0000435604,900.00,Revenue,J & J ASHCROFT LTD,00087515
South Ribble Council,http://statistics.data.gov.uk/doc/local-authority/30UN,HR & Communications,Agency Fees,1121,WORK CARRIED OUT BY NAME REDACTED FROM 1ST APRIL 2017 UNTIL END OF CONTRACT,03/11/2017,0000435511,"15,228.30",Revenue,Joanne Platt Associates Ltd,132222
South Ribble Council,http://statistics.data.gov.uk/doc/local-authority/30UN,Area 3 - Parks/Leyland East West,Grounds Maint Cntrctrs Chgs,4657,DECKING INSERTS ANTI SLIP,22/11/2017,0000435672,928.00,Revenue,JOHN HY MAYOR & SONS LTD,00028176
South Ribble Council,http://statistics.data.gov.uk/doc/local-authority/30UN,Planning,Advertising,4841,Press notices for planning applications 2017/18,01/11/2017,0000435136,594.00,Revenue,JOHNSTON PUBLISHING (NORTH WEST),00011345
South Ribble Council,http://statistics.data.gov.uk/doc/local-authority/30UN,Planning,Advertising,4841,Press notices for planning applications 2017/18,01/11/2017,0000435325,621.00,Revenue,JOHNSTON PUBLISHING (NORTH WEST),00011345
South Ribble Council,http://statistics.data.gov.uk/doc/local-authority/30UN,Planning,Advertising,4841,Press notices for planning applications 2017/18,17/11/2017,0000435450,594.00,Revenue,JOHNSTON PUBLISHING (NORTH WEST),00011345
South Ribble Council,http://statistics.data.gov.uk/doc/local-authority/30UN,Planning,Advertising,4841,Press notices for planning applications 2017/18,17/11/2017,0000435607,594.00,Revenue,JOHNSTON PUBLISHING (NORTH WEST),00011345
South Ribble Council,http://statistics.data.gov.uk/doc/local-authority/30UN,Planning,Advertising,4841,Press notices for planning applications 2017/18,17/11/2017,0000435718,567.00,Revenue,JOHNSTON PUBLISHING (NORTH WEST),00011345
South Ribble Council,http://statistics.data.gov.uk/doc/local-authority/30UN,Planning,Advertising,4841,Press notices for planning applications 2017/18,17/11/2017,0000435771,621.00,Revenue,JOHNSTON PUBLISHING (NORTH WEST),00011345
South Ribble Council,http://statistics.data.gov.uk/doc/local-authority/30UN,Area 3 - Parks/Leyland East West,External Contractors Charges,4570,TRAFFIC MANAGEMENT - BYPASSES - 16.10.17 TO 20.10.17,10/11/2017,0000435586,"4,259.00",Revenue,KAYS TRAFFIC MANAGEMENT LTD,00072342
South Ribble Council,http://statistics.data.gov.uk/doc/local-authority/30UN,Area 1 - Penwortham Western Parishes,External Contractors Charges,4570,TRAFFIC MANAGEMENT - BYPASSES - 23.10.17 TO 27.10.17,10/11/2017,0000435587,"3,200.00",Revenue,KAYS TRAFFIC MANAGEMENT LTD,00072342
South Ribble Council,http://statistics.data.gov.uk/doc/local-authority/30UN,Area 3 - Parks/Leyland East West,External Contractors Charges,4570,PROVIDE TRACTOR/OPERATOR FOR VERGE CUTTING AROUND THE BOROUGH. 1000M SAFETY. BASED ON MONDAY,22/11/2017,0000435770,"3,150.00",Revenue,KAYS TRAFFIC MANAGEMENT LTD,00072342
South Ribble Council,http://statistics.data.gov.uk/doc/local-authority/30UN,Planning,Professional Fees,4510,Fees for work done re Land to the West of Grasmere Avenue 07/2017/2181/VAR,15/11/2017,0000435747,"2,900.00",Revenue,Keppie Massie,131948
South Ribble Council,http://statistics.data.gov.uk/doc/local-authority/30UN,Environmental Health,Materials General,4041,Various poisons per NAME REDACTED.,10/11/2017,0000435588,431.48,Revenue,KILLGERM CHEMICALS LTD,00025894
South Ribble Council,http://statistics.data.gov.uk/doc/local-authority/30UN,Area 2 - Waste Transport/Eastern & Central Teams,Materials General,4040,1 x 208 Litre Barrel of 10/30 1 x Barrel pump,24/11/2017,0000435992,377.36,Revenue,LANCASHIRE OILS LTD,131167
South Ribble Council,http://statistics.data.gov.uk/doc/local-authority/30UN,Area 2 - Waste Transport/Eastern & Central Teams,Waste Disposal Charges,5112,August 2017 - Incineration of Clinical Waste,03/11/2017,0000435512,597.74,Revenue,LANCASHIRE TEACHING FT,00120715
South Ribble Council,http://statistics.data.gov.uk/doc/local-authority/30UN,Area 1 - Penwortham Western Parishes,Professional Fees,4516,BACK OFFICE PROCESSING JULY - SEPTEMBER 2017,01/11/2017,0000435445,969.45,Revenue,LANCS COUNTY COUNCIL,00041645
South Ribble Council,http://statistics.data.gov.uk/doc/local-authority/30UN,Area 1 - Penwortham Western Parishes,Professional Fees,4516,TEC RECHARGES JULY - SEPTEMBER 2017,01/11/2017,0000435445,184.00,Revenue,LANCS COUNTY COUNCIL,00041645
South Ribble Council,http://statistics.data.gov.uk/doc/local-authority/30UN,Planning,Balance Sheet,0030,"FAO NAME REDACTED Project Manager - Programme Office  Installation of one bus stop to a value of 10,000 at the Hosp",15/11/2017,0000435488,"11,000.00",Revenue,LANCS COUNTY COUNCIL,00041645
South Ribble Council,http://statistics.data.gov.uk/doc/local-authority/30UN,Housing,Cap Grant- Improve Grants,C570,SUPPLY AND INSTALL STAIRLIFT AT ADDRESS REDACTED AS PER YOUR QUOTE 5951.12 PLEASE NOTE CUSTOMER,17/11/2017,0000435854,"5,951.12",Revenue,LANCS COUNTY COUNCIL,00041645
South Ribble Council,http://statistics.data.gov.uk/doc/local-authority/30UN,Housing,Cap Grant- Improve Grants,C570,Supply and install stair lift at ADDRESS REDACTED as per your quote of 5889.00,17/11/2017,0000435855,"5,889.00",Revenue,LANCS COUNTY COUNCIL,00041645
South Ribble Council,http://statistics.data.gov.uk/doc/local-authority/30UN,Legal,Other Local Authorities,4530,LAND CHARGES - OCTOBER 2017,29/11/2017,0000436052,"1,176.00",Revenue,LANCS COUNTY COUNCIL,00041645
South Ribble Council,http://statistics.data.gov.uk/doc/local-authority/30UN,Area 2 - Waste Transport/Eastern & Central Teams,Materials General,4040,2 BRAKE CHAMBERS - PJ62 UCH - JFC9336 - ,01/11/2017,0000435433,420.00,Revenue,LANCS DAF,00026424
South Ribble Council,http://statistics.data.gov.uk/doc/local-authority/30UN,Area 2 - Waste Transport/Eastern & Central Teams,Materials General,4040,2 BRAKE CHAMBERS - PJ62 UCH - JFC9336 - ,01/11/2017,0000435435,702.00,Revenue,LANCS DAF,00026424
South Ribble Council,http://statistics.data.gov.uk/doc/local-authority/30UN,Area 2 - Waste Transport/Eastern & Central Teams,Materials General,4040,invoice to be credited per NAME REDACTED for surcharge and this to be forced through as PO was used against that invoice,22/11/2017,0000435562,331.28,Revenue,LANCS DAF,00026424
South Ribble Council,http://statistics.data.gov.uk/doc/local-authority/30UN,Area 2 - Waste Transport/Eastern & Central Teams,External Contractors Charges,4570,SPEC REPAIR -RV14DTZ - JFC9555 - AW,29/11/2017,0000435756,"2,865.39",Revenue,LANCS DAF,00026424
South Ribble Council,http://statistics.data.gov.uk/doc/local-authority/30UN,Area 2 - Waste Transport/Eastern & Central Teams,External Contractors Charges,4570,SPEC REPAIR - JFC9585 - RV14DTZ - PD,22/11/2017,0000435769,329.87,Revenue,LANCS DAF,00026424
South Ribble Council,http://statistics.data.gov.uk/doc/local-authority/30UN,Scrutiny,Subs to Statutory Bodies,4720,SRBC - Renewal of  Corporate Membership 2017/18 (Bronze),08/11/2017,0000435349,500.00,Revenue,LANCS WILDLIFE TRUST,00027009
South Ribble Council,http://statistics.data.gov.uk/doc/local-authority/30UN,Regeneration,Professional Fees,4510,5 days - Friends Group activity 26/7 - 11/10,03/11/2017,0000435375,"1,041.67",Revenue,LANCS WILDLIFE TRUST,00027009
South Ribble Council,http://statistics.data.gov.uk/doc/local-authority/30UN,Regeneration,Capital Expenditure,C234,"Value of works, retention St Catherine`s park",22/11/2017,0000435768,907.03,Revenue,LANDSCAPE ENGINEERING LIMITED,130416
South Ribble Council,http://statistics.data.gov.uk/doc/local-authority/30UN,Planning,Printing,4125,Lease of printers 2017/18,08/11/2017,0000435520,"1,426.25",Revenue,LDF FINANCE No1 LTD,131373
South Ribble Council,http://statistics.data.gov.uk/doc/local-authority/30UN,Planning,Professional Fees,4510,Completion of work for HIF bid,08/11/2017,0000435637,"1,260.00",Revenue,LEA HOUGH & CO,131196
South Ribble Council,http://statistics.data.gov.uk/doc/local-authority/30UN,Scrutiny,Consultancy Fees,4541,"HIRE OF BALMORAL SUITE FOR THE  SCRUTINY COMMITTEE ON MONDAY, 6TH NOVEMBER, 2017, 6.00 PM",08/11/2017,0000435648,361.89,Revenue,LEYLAND MASONIC HALL ASSOC,00060189
South Ribble Council,http://statistics.data.gov.uk/doc/local-authority/30UN,Housing,Cap Grant- Improve Grants,C570,DFG WORK AT ADDRESS REDACTED TO PAY 50% COST - 1250.00,17/11/2017,0000435853,"1,250.00",Revenue,Liberty Gas Group,132345
South Ribble Council,http://statistics.data.gov.uk/doc/local-authority/30UN,HR & Communications,Agency Fees,1121,CONSULTANCY SERVICES,22/11/2017,0000435852,"12,200.00",Revenue,Lilja Consulting Ltd,132320
South Ribble Council,http://statistics.data.gov.uk/doc/local-authority/30UN,Planning,Balance Sheet,0030,Community Infrastructure Levy (CIL) Payment for Parish Council re: Planning application 07/2015/1504/FUL,22/11/2017,0000435921,"1,157.44",Revenue,LONGTON PARISH COUNCIL,00026673
South Ribble Council,http://statistics.data.gov.uk/doc/local-authority/30UN,Planning,Balance Sheet,0030,Community Infrastructure Levy (CIL) Payment for Parish Council re: planning application 07/2015/1601/FUL,22/11/2017,0000435921,692.76,Revenue,LONGTON PARISH COUNCIL,00026673
South Ribble Council,http://statistics.data.gov.uk/doc/local-authority/30UN,Regeneration,Other Misc,4851,Remembrance Day Parade contribution,08/11/2017,0000435539,300.00,Revenue,LOSTOCK HALL ROYAL BRITISH LEGION BRANCH,131308
South Ribble Council,http://statistics.data.gov.uk/doc/local-authority/30UN,Regeneration,Other Misc,4851,Glass award  trophies for Community Awards 2017,24/11/2017,0000435281,382.80,Revenue,LOVE TO BRAND LTD,130839
South Ribble Council,http://statistics.data.gov.uk/doc/local-authority/30UN,Regeneration,Other Misc,4851,300 Printed Bags SRP Promotional  Quote 8678,01/11/2017,0000435394,348.00,Revenue,LOVE TO BRAND LTD,130839
South Ribble Council,http://statistics.data.gov.uk/doc/local-authority/30UN,Housing,Cap Grant- Improve Grants,C570,DFG works at ADDRESS REDACTED - 50% of total cost,08/11/2017,0000435615,"2,247.50",Revenue,MAHONEY CONTRACTORS LTD,131271
South Ribble Council,http://statistics.data.gov.uk/doc/local-authority/30UN,Housing,Cap Grant- Improve Grants,C570,"DFG WORKS AT ADDRESS REDACTED , 50% OF TOTAL COST COST 1285.00",08/11/2017,0000435616,"1,285.00",Revenue,MAHONEY CONTRACTORS LTD,131271
South Ribble Council,http://statistics.data.gov.uk/doc/local-authority/30UN,Housing,Cap Grant- Improve Grants,C570,"DFG WORKS AT ADDRESS REDACTED , 50% OF TOTAL COST COST 1345.00",24/11/2017,0000435998,"1,345.00",Revenue,MAHONEY CONTRACTORS LTD,131271
South Ribble Council,http://statistics.data.gov.uk/doc/local-authority/30UN,Scrutiny,Contractors Charges 5,5313,Resettlement Programme � void/loss of rental for up to 8 weeks for 1 property as agreed with NAME REDACTED,24/11/2017,0000435981,782.92,Revenue,Manchester & District Housing Association Limited,132050
South Ribble Council,http://statistics.data.gov.uk/doc/local-authority/30UN,Area 2 - Waste Transport/Eastern & Central Teams,External Contractors Charges,4570,SPEC REPAIR - PJ04XBR - JFC9616 - PD,24/11/2017,0000436045,338.17,Revenue,MERLIN DIESEL SYSTEM LTD,130925
South Ribble Council,http://statistics.data.gov.uk/doc/local-authority/30UN,Information Services,Peripherals,4241,"NBD warranty for MD100 - MV15438 for 2 years, period 23/10/17 - 22/10/19",01/11/2017,0000435167,900.00,Revenue,MIDLAND COMPUTER SERVICES LTD,00060600
South Ribble Council,http://statistics.data.gov.uk/doc/local-authority/30UN,Area 2 - Waste Transport/Eastern & Central Teams,External Contractors Charges,4570,1 vehicle transfer from Moss Side Depot - VN10 DKL JFC9583,22/11/2017,0000435722,350.00,Revenue,MILLERS OF LONGTON LTD,00028642
South Ribble Council,http://statistics.data.gov.uk/doc/local-authority/30UN,Revenues Plus,Agency Fees,1121,NAME REDACTED - October 2017,08/11/2017,0000435507,"1,004.25",Revenue,MORGAN HUNT PUBLIC SECTOR LTD,00120401
South Ribble Council,http://statistics.data.gov.uk/doc/local-authority/30UN,Revenues Plus,Agency Fees,1121,NAME REDACTED - October 2017,22/11/2017,0000435877,"1,004.25",Revenue,MORGAN HUNT PUBLIC SECTOR LTD,00120401
South Ribble Council,http://statistics.data.gov.uk/doc/local-authority/30UN,Revenues Plus,Agency Fees,1121,Agency Staff - NAME REDACTED for November 2017,22/11/2017,0000435879,746.75,Revenue,MORGAN HUNT PUBLIC SECTOR LTD,00120401
South Ribble Council,http://statistics.data.gov.uk/doc/local-authority/30UN,Revenues Plus,Agency Fees,1121,Agency Staff - NAME REDACTED for November 2017,29/11/2017,0000436055,991.38,Revenue,MORGAN HUNT PUBLIC SECTOR LTD,00120401
South Ribble Council,http://statistics.data.gov.uk/doc/local-authority/30UN,Area 1 - Penwortham Western Parishes,Professional Fees,4521,PROVISION OF STRAY DOG SERVICE - TO COVER OCTOBER 2017,08/11/2017,0000435577,259.09,Revenue,MORNINGSIDE KENNELS,00067755
South Ribble Council,http://statistics.data.gov.uk/doc/local-authority/30UN,Shared Assurance Services,Other Grants and Subscriptions,4741,flood grant,10/11/2017,0000435629,"3,896.40",Revenue,NAME REDACTED,131883
South Ribble Council,http://statistics.data.gov.uk/doc/local-authority/30UN,Shared Assurance Services,Other Grants and Subscriptions,4741,flood grant,01/11/2017,0000435379,"2,679.67",Revenue,NAME REDACTED,132384
South Ribble Council,http://statistics.data.gov.uk/doc/local-authority/30UN,Shared Assurance Services,Other Grants and Subscriptions,4741,flood grant,24/11/2017,0000435795,"3,425.28",Revenue,NAME REDACTED,131710
South Ribble Council,http://statistics.data.gov.uk/doc/local-authority/30UN,Shared Assurance Services,Other Grants and Subscriptions,4741,flood grant,01/11/2017,0000435471,"5,000.00",Revenue,NAME REDACTED,132393
South Ribble Council,http://statistics.data.gov.uk/doc/local-authority/30UN,Housing,Cap Grant- Improve Grants,C570,DFG WORKS TO BATHROOM AS PER QUOTE AT ADDRESS REDACTED COST OF WORK 4128.00,22/11/2017,0000435946,"4,128.00",Revenue,MSG Building and Construction Ltd,132375
South Ribble Council,http://statistics.data.gov.uk/doc/local-authority/30UN,Area 2 - Waste Transport/Eastern & Central Teams,External Contractors Charges,4570,LOLER INSPECTION - JFC9589 - VO65KPX - PD,22/11/2017,0000435901,55.50,Revenue,MUNICIPAL VEHICLE INSPECTION SERVICES LT,00096645
South Ribble Council,http://statistics.data.gov.uk/doc/local-authority/30UN,Area 2 - Waste Transport/Eastern & Central Teams,External Contractors Charges,4570,LOLER INSPECTION - JFC9590 - VO65KPY - PD,22/11/2017,0000435901,55.50,Revenue,MUNICIPAL VEHICLE INSPECTION SERVICES LT,00096645
South Ribble Council,http://statistics.data.gov.uk/doc/local-authority/30UN,Area 2 - Waste Transport/Eastern & Central Teams,External Contractors Charges,4570,LOLER INSPECTION - JFC9591 - VO65KRF - PD,22/11/2017,0000435901,111.00,Revenue,MUNICIPAL VEHICLE INSPECTION SERVICES LT,00096645
South Ribble Council,http://statistics.data.gov.uk/doc/local-authority/30UN,Area 2 - Waste Transport/Eastern & Central Teams,External Contractors Charges,4570,LOLER INSPECTION - JFC9592 - VO65KRD - PD,22/11/2017,0000435901,111.00,Revenue,MUNICIPAL VEHICLE INSPECTION SERVICES LT,00096645
South Ribble Council,http://statistics.data.gov.uk/doc/local-authority/30UN,Area 2 - Waste Transport/Eastern & Central Teams,External Contractors Charges,4570,LOLER INSPECTION - JFC9593 - VO65KPZ - PD,22/11/2017,0000435901,111.00,Revenue,MUNICIPAL VEHICLE INSPECTION SERVICES LT,00096645
South Ribble Council,http://statistics.data.gov.uk/doc/local-authority/30UN,Area 2 - Waste Transport/Eastern & Central Teams,External Contractors Charges,4570,LOLER INSPECTION - JFC9594 - VO65KRE - PD,22/11/2017,0000435901,111.00,Revenue,MUNICIPAL VEHICLE INSPECTION SERVICES LT,00096645
South Ribble Council,http://statistics.data.gov.uk/doc/local-authority/30UN,Development Enterprise & Comm Mgnt,Other Misc,4851,"Marquee hire for Truck Trail departure event on  October 31st  @  512.95  Location Worden Park, Leyland",08/11/2017,0000435610,708.20,Revenue,NATIONWIDE MARQUEE HIRE LTD,130006
South Ribble Council,http://statistics.data.gov.uk/doc/local-authority/30UN,Area 2 - Waste Transport/Eastern & Central Teams,External Contractors Charges,4570,STEAM CLEAN - PJ62UCM - JFC9328 - PD,08/11/2017,0000435622,65.00,Revenue,NAYLORS TRANSPORT (LEYLAND) ltd,00114828
South Ribble Council,http://statistics.data.gov.uk/doc/local-authority/30UN,Area 2 - Waste Transport/Eastern & Central Teams,External Contractors Charges,4570,STEAM CLEAN - MX04YNL - JFC9329 - PD,08/11/2017,0000435622,65.00,Revenue,NAYLORS TRANSPORT (LEYLAND) ltd,00114828
South Ribble Council,http://statistics.data.gov.uk/doc/local-authority/30UN,Area 2 - Waste Transport/Eastern & Central Teams,External Contractors Charges,4570,STEAM CLEAN - VO65KRE - JFC9330 - PD,08/11/2017,0000435622,65.00,Revenue,NAYLORS TRANSPORT (LEYLAND) ltd,00114828
South Ribble Council,http://statistics.data.gov.uk/doc/local-authority/30UN,Area 2 - Waste Transport/Eastern & Central Teams,External Contractors Charges,4570,STEAM CLEAN - NX58FJZ - JFC9331 - PD,08/11/2017,0000435622,65.00,Revenue,NAYLORS TRANSPORT (LEYLAND) ltd,00114828
South Ribble Council,http://statistics.data.gov.uk/doc/local-authority/30UN,Area 2 - Waste Transport/Eastern & Central Teams,External Contractors Charges,4570,STEAM CLEAN - YP11CFM - JFC9332 - PD,08/11/2017,0000435622,65.00,Revenue,NAYLORS TRANSPORT (LEYLAND) ltd,00114828
South Ribble Council,http://statistics.data.gov.uk/doc/local-authority/30UN,Area 2 - Waste Transport/Eastern & Central Teams,External Contractors Charges,4570,STEAM CLEAN - VO65KPY - JFC9335 - PD,08/11/2017,0000435622,65.00,Revenue,NAYLORS TRANSPORT (LEYLAND) ltd,00114828
South Ribble Council,http://statistics.data.gov.uk/doc/local-authority/30UN,Area 2 - Waste Transport/Eastern & Central Teams,External Contractors Charges,4570,STEAM CLEAN - PJ62UCH - JFC9336 - PD,08/11/2017,0000435622,75.00,Revenue,NAYLORS TRANSPORT (LEYLAND) ltd,00114828
South Ribble Council,http://statistics.data.gov.uk/doc/local-authority/30UN,Area 2 - Waste Transport/Eastern & Central Teams,External Contractors Charges,4570,STEAM CLEAN - VO65KRD - JFC9337 - PD,08/11/2017,0000435622,65.00,Revenue,NAYLORS TRANSPORT (LEYLAND) ltd,00114828
South Ribble Council,http://statistics.data.gov.uk/doc/local-authority/30UN,Environmental Health,External Contractors Charges,4570,Clearance of asbestos in Samlesbury - per NAME REDACTED,22/11/2017,0000435765,"1,650.00",Revenue,NEALES WASTE MANAGEMENT,130129
South Ribble Council,http://statistics.data.gov.uk/doc/local-authority/30UN,Property Services,Client Internal Charges,4590,2017 / 2018 fees for the front end loader weekly exchange at Leyland Market,15/11/2017,0000435767,386.12,Revenue,NEALES WASTE MANAGEMENT,130129
South Ribble Council,http://statistics.data.gov.uk/doc/local-authority/30UN,Homelessness,Contributions,4730,Womens refuge funding,03/11/2017,0000435322,"1,000.00",Revenue,NEW PROGRESS HOUSING ASSOC ref:DNSOU001,00030135
South Ribble Council,http://statistics.data.gov.uk/doc/local-authority/30UN,Homelessness,Contractors Charges 5,5313,Agree void loss Jul 17 � Sept 17  East Street - 339.26 Pine Court - 772.26 Rowan Court - 970.85 Sherburn Road - 188.96   ,24/11/2017,0000436049,"2,271.33",Revenue,NEW PROGRESS HOUSING ASSOC ref:DNSOU001,00030135
South Ribble Council,http://statistics.data.gov.uk/doc/local-authority/30UN,Regeneration,Capital Expenditure,C234,Planting Tractor on Leyland Lane Roundabout,08/11/2017,0000435543,345.30,Revenue,NEWGATE NURSERIES,00069591
South Ribble Council,http://statistics.data.gov.uk/doc/local-authority/30UN,Regeneration,Capital Expenditure,C234,"to supply & install trees, soil and planting to free standing planters",24/11/2017,0000435996,"6,443.00",Revenue,NEWGATE NURSERIES,00069591
South Ribble Council,http://statistics.data.gov.uk/doc/local-authority/30UN,HR & Communications,Training Expense-Course Fees,1402,STRATEGIC HR & OD BUSINESS PARTNER PROGRAMME QUALIFICATION FORNAME REDACTED OCTOBER 2017,22/11/2017,0000435851,"1,925.00",Revenue,NORTH WEST EMPLOYERS,00029829
South Ribble Council,http://statistics.data.gov.uk/doc/local-authority/30UN,Development Enterprise & Comm Mgnt,Other Misc,485A,Up to 7 A2 double skin acrylic frames with brushed fitting brackets and photo print to fit 79.00 each  Up to 3 A1 double skin,10/11/2017,0000435677,912.00,Revenue,NORWYN LTD,00118303
South Ribble Council,http://statistics.data.gov.uk/doc/local-authority/30UN,Area 1 - Penwortham Western Parishes,Professional Fees,4514,Deployment of officers October 2017,03/11/2017,0000435527,"1,274.82",Revenue,NSL LTD,00116868
South Ribble Council,http://statistics.data.gov.uk/doc/local-authority/30UN,Area 1 - Penwortham Western Parishes,Other Misc,4855,Cash collection and ring-go charges October 2017,03/11/2017,0000435527,361.58,Revenue,NSL LTD,00116868
South Ribble Council,http://statistics.data.gov.uk/doc/local-authority/30UN,Planning,Agency Fees,1121,NAME REDACTED - Planning Consultant,15/11/2017,0000435451,"1,886.00",Revenue,Park Avenue Recruitment,132388
South Ribble Council,http://statistics.data.gov.uk/doc/local-authority/30UN,Healthy Communities,Other Misc,4851,Stage - 250  Compere & Entertainment - 650  Trophies - 275  Certificates & Programmes (printing costs) - 225 Total:,01/11/2017,0000435458,"1,400.00",Revenue,Pennine Events,131103
South Ribble Council,http://statistics.data.gov.uk/doc/local-authority/30UN,Democratic Services,External Contractors Charges,4575,Remembrance Sunday - 12th November 2017 Provide Hotpot / Butter Pie / Red Cabbage / Peas / Gravy Civic Centre  ,17/11/2017,0000435762,900.00,Revenue,Penningtons Catering Ltd,131684
South Ribble Council,http://statistics.data.gov.uk/doc/local-authority/30UN,Property Services,External Contractors Charges,4575,To supply hot meals @ 6.20per head for 55 on 22nd November 2017 @ 16.30 to SRBC,29/11/2017,0000436008,341.00,Revenue,Penningtons Catering Ltd,131684
South Ribble Council,http://statistics.data.gov.uk/doc/local-authority/30UN,Development Enterprise & Comm Mgnt,Balance Sheet,0030,"Dual Use Charges 1 payment of 36,000",24/11/2017,0000435979,"15,000.00",Revenue,PENWORTHAM PRIORY ACADEMY,130720
South Ribble Council,http://statistics.data.gov.uk/doc/local-authority/30UN,Development Enterprise & Comm Mgnt,Balance Sheet,0030,Dal use recharges 36000.00 payable by 12 payments of 3000.00,24/11/2017,0000435980,"21,000.00",Revenue,PENWORTHAM PRIORY ACADEMY,130720
South Ribble Council,http://statistics.data.gov.uk/doc/local-authority/30UN,Development Enterprise & Comm Mgnt,Balance Sheet,0030,invoice to be cancelled by credit IN000705,24/11/2017,0000435994,"21,000.00",Revenue,PENWORTHAM PRIORY ACADEMY,130720
South Ribble Council,http://statistics.data.gov.uk/doc/local-authority/30UN,Planning,Balance Sheet,0030,Community Infrastructure Levy (CIL) Payment for Parish/Town Council re: planning application 07/2015/0840/FUL,22/11/2017,0000435978,151.99,Revenue,PENWORTHAM TOWN COUNCIL,00031257
South Ribble Council,http://statistics.data.gov.uk/doc/local-authority/30UN,Planning,Balance Sheet,0030,Community Infrastructure Levy (CIL) Payment for Parish/Town Council re: planning application 07/2016/0941/FUL,22/11/2017,0000435978,"1,245.40",Revenue,PENWORTHAM TOWN COUNCIL,00031257
South Ribble Council,http://statistics.data.gov.uk/doc/local-authority/30UN,Neighbourhood Admin & Support,Vehicle Running Costs,3132,FUEL FOR SEPTEMBER 2017,29/11/2017,0000435289,321.60,Revenue,PETROMEX MILLBROOK WAY SERVICE STATION,00062572
South Ribble Council,http://statistics.data.gov.uk/doc/local-authority/30UN,Information Services,Peripherals,4244,13 x BT Converse 2200 Black telephones @ 45.00 each and 5 x BT Converse 2300 Black telephones @ 56.49 each,01/11/2017,0000435447,867.45,Revenue,PHILLIPS BUSINESS SOLUTIONS,00032214
South Ribble Council,http://statistics.data.gov.uk/doc/local-authority/30UN,Revenues Plus,Peripherals,4242,Universal Credit CTS Scheme Modelling,29/11/2017,0000435943,"8,960.00",Revenue,Policy in Practice,132414
South Ribble Council,http://statistics.data.gov.uk/doc/local-authority/30UN,Housing,Cap Grant- Improve Grants,C570,DFG WORKS TO BATHROOM AS PER QUOTE AT NAME REDACTED COST OF WORK 1527.50,17/11/2017,0000435845,"1,527.50",Revenue,Positive Plumbing Solutions Ltd,131562
South Ribble Council,http://statistics.data.gov.uk/doc/local-authority/30UN,Area 2 - Waste Transport/Eastern & Central Teams,Vehicle Running Costs,3137,,10/11/2017,0000435639,240.00,Revenue,POST OFFICE LTD,00031354
South Ribble Council,http://statistics.data.gov.uk/doc/local-authority/30UN,Area 2 - Waste Transport/Eastern & Central Teams,Vehicle Running Costs,3137,,10/11/2017,0000435639,240.00,Revenue,POST OFFICE LTD,00031354
South Ribble Council,http://statistics.data.gov.uk/doc/local-authority/30UN,Area 2 - Waste Transport/Eastern & Central Teams,Vehicle Running Costs,3137,,10/11/2017,0000435639,650.00,Revenue,POST OFFICE LTD,00031354
South Ribble Council,http://statistics.data.gov.uk/doc/local-authority/30UN,Area 2 - Waste Transport/Eastern & Central Teams,Vehicle Running Costs,3137,,10/11/2017,0000435639,650.00,Revenue,POST OFFICE LTD,00031354
South Ribble Council,http://statistics.data.gov.uk/doc/local-authority/30UN,Area 2 - Waste Transport/Eastern & Central Teams,Vehicle Running Costs,3137,,10/11/2017,0000435639,650.00,Revenue,POST OFFICE LTD,00031354
South Ribble Council,http://statistics.data.gov.uk/doc/local-authority/30UN,Area 2 - Waste Transport/Eastern & Central Teams,Vehicle Running Costs,3137,,10/11/2017,0000435639,650.00,Revenue,POST OFFICE LTD,00031354
South Ribble Council,http://statistics.data.gov.uk/doc/local-authority/30UN,Information Services,Stationery,4133,"60,000 sheets  Evolution Everyday 80gm A4",08/11/2017,0000435544,293.40,Revenue,PREMIER PAPER GROUP LTD,00022606
South Ribble Council,http://statistics.data.gov.uk/doc/local-authority/30UN,Information Services,Stationery,4133,"50,000 sheets Evolution Everyday A4 80gm 5000 sheets Evolution Everyday A3 80gm 1000 A4 White card Premier Elements",22/11/2017,0000435922,311.42,Revenue,PREMIER PAPER GROUP LTD,00022606
South Ribble Council,http://statistics.data.gov.uk/doc/local-authority/30UN,Area 2 - Waste Transport/Eastern & Central Teams,External Contractors Charges,4570,TYRE REPAIRS - TR181 - AW,22/11/2017,0000435863,254.55,Revenue,PRESTON TYRE SPECIALISTS,00109516
South Ribble Council,http://statistics.data.gov.uk/doc/local-authority/30UN,Area 2 - Waste Transport/Eastern & Central Teams,Agency Fees,1121,AGENCY MECHANIC - W/C 25.9.17 (40 HOURS PER WEEK - 8 @ 19.23 AND 32 @19.58 PER HOUR),01/11/2017,0000435411,769.20,Revenue,Proactive Personnel Limited,131697
South Ribble Council,http://statistics.data.gov.uk/doc/local-authority/30UN,Area 2 - Waste Transport/Eastern & Central Teams,Agency Fees,1121,,22/11/2017,0000435791,461.52,Revenue,Proactive Personnel Limited,131697
South Ribble Council,http://statistics.data.gov.uk/doc/local-authority/30UN,Area 2 - Waste Transport/Eastern & Central Teams,Agency Fees,1121,AGENCY MECHANIC -  W/C 6/11/17 (40 HOURS PER WEEK @19.58/HOUR),22/11/2017,0000435823,769.20,Revenue,Proactive Personnel Limited,131697
South Ribble Council,http://statistics.data.gov.uk/doc/local-authority/30UN,Area 3 - Parks/Leyland East West,Grounds Maint Cntrctrs Chgs,4657,1x Aerospeed Handle (U2513),01/11/2017,0000435424,603.67,Revenue,PROLUDIC LTD,00083263
South Ribble Council,http://statistics.data.gov.uk/doc/local-authority/30UN,Area 3 - Parks/Leyland East West,Grounds Maint Cntrctrs Chgs,4657,Delivery,01/11/2017,0000435424,60.37,Revenue,PROLUDIC LTD,00083263
South Ribble Council,http://statistics.data.gov.uk/doc/local-authority/30UN,Information Services,Postage,4292,Franking Funds Top up payment,29/11/2017,0000436106,"17,597.76",Revenue,Purchase Power,00093923
South Ribble Council,http://statistics.data.gov.uk/doc/local-authority/30UN,Property Services,Rep & Maint Premises,2020,"Remove pipe boxing, repair foul drain and make good to wc within unit 59 - 61 Pope Lane Shops  Clean carpets to unit 53",08/11/2017,0000435441,300.00,Revenue,RED ROSE BUILDING MAINTENANCE,00085410
South Ribble Council,http://statistics.data.gov.uk/doc/local-authority/30UN,Property Services,Rep & Maint Premises,2020,materials,08/11/2017,0000435441,295.00,Revenue,RED ROSE BUILDING MAINTENANCE,00085410
South Ribble Council,http://statistics.data.gov.uk/doc/local-authority/30UN,Property Services,Rep & Maint Premises,2020,Take up and re lay concrete flags alley way around first floor entrance doorway - at Pope Lane Shops as per NAME REDACTED,03/11/2017,0000435464,240.00,Revenue,RED ROSE BUILDING MAINTENANCE,00085410
South Ribble Council,http://statistics.data.gov.uk/doc/local-authority/30UN,Property Services,Rep & Maint Premises,2020,MATERIALS,03/11/2017,0000435464,42.00,Revenue,RED ROSE BUILDING MAINTENANCE,00085410
South Ribble Council,http://statistics.data.gov.uk/doc/local-authority/30UN,Development Enterprise & Comm Mgnt,Other Misc,485A,Rental costs for storage unit for Economic Development November 2017 to April 2018 @ 346.63.,24/11/2017,0000436013,288.86,Revenue,Red Rose Self Storage Limited,132014
South Ribble Council,http://statistics.data.gov.uk/doc/local-authority/30UN,Democratic Services,Professional Fees,4510,Specialist intensive support to the Resettlement Programme as per the service level agreement between the Council and Refugee,08/11/2017,0000435377,"24,558.44",Revenue,REFUGEE ACTION,132107
South Ribble Council,http://statistics.data.gov.uk/doc/local-authority/30UN,Property Services,Energy Costs,2301,"Please supply 4,000 ltrs of fuel oil to Worden Park PR5 1DJ -  contact NAMES REDACTED",01/11/2017,0000435423,"2,600.00",Revenue,RIBBLE FUEL OILS,00047461
South Ribble Council,http://statistics.data.gov.uk/doc/local-authority/30UN,Information Services,Lease Rental Charges,4036,,10/11/2017,0000435695,361.00,Revenue,RICOH (UK) LTD,00082976
South Ribble Council,http://statistics.data.gov.uk/doc/local-authority/30UN,Democratic Services,Postage,4291,Electoral Registration Postage General Costs 2017/18 (NON-ELECTION COSTS ONLY),10/11/2017,0000435636,"6,837.74",Revenue,ROYAL MAIL GROUP PLC,00033543
South Ribble Council,http://statistics.data.gov.uk/doc/local-authority/30UN,Planning,Consultancy Fees,4541,ADAS RESPONSES TO:- 07/2016/1131/FUL - GBP205 07/2017/02511/FUL - GBP205 PLANNING APPEAL WHITESTAKE ,10/11/2017,0000435737,"2,372.00",Revenue,RSK ADAS Ltd,132221
South Ribble Council,http://statistics.data.gov.uk/doc/local-authority/30UN,HR & Communications,Payroll Suspense,1741,MEMBERSHIP SUBS FROM 1 JAN 2018 - 31 DEC 2018 - NAME REDACTED,22/11/2017,0000435928,300.00,Revenue,RTPI,00033491
South Ribble Council,http://statistics.data.gov.uk/doc/local-authority/30UN,HR & Communications,Payroll Suspense,1741,MEMBERSHIP SUBS FROM 1 JAN 2018 - 31 DEC 2018 - NAME REDACTED,22/11/2017,0000435929,300.00,Revenue,RTPI,00033491
South Ribble Council,http://statistics.data.gov.uk/doc/local-authority/30UN,HR & Communications,Payroll Suspense,1741,MEMBRSHIP SUBS FROM 1 JAN 208 - 31 DEC 2018 - NAME REDACTED,22/11/2017,0000435930,300.00,Revenue,RTPI,00033491
South Ribble Council,http://statistics.data.gov.uk/doc/local-authority/30UN,HR & Communications,Payroll Suspense,1741,MEMBERSHIP SUBS FROM 1 JAN 2018 - 31 DEC 2018 - NAME REDACTED,22/11/2017,0000435936,338.66,Revenue,RTPI,00033491
South Ribble Council,http://statistics.data.gov.uk/doc/local-authority/30UN,HR & Communications,Payroll Suspense,1741,MEMBERSHIP SUBS FROM 1 JAN 2018 - 31 DEC 2018 - NAME REDACTED,22/11/2017,0000435937,300.00,Revenue,RTPI,00033491
South Ribble Council,http://statistics.data.gov.uk/doc/local-authority/30UN,HR & Communications,Payroll Suspense,1741,MEMBERSHIP SUBS FROM 1 JAN 2018 - 31 DEC 2018 - NAME REDACTED,22/11/2017,0000435938,300.00,Revenue,RTPI,00033491
South Ribble Council,http://statistics.data.gov.uk/doc/local-authority/30UN,HR & Communications,Payroll Suspense,1741,MEMBERSHIP SUBS FROM 1 JAN 2018 - 31 DEC 2018 - NAME REDACTED,22/11/2017,0000435939,300.00,Revenue,RTPI,00033491
South Ribble Council,http://statistics.data.gov.uk/doc/local-authority/30UN,Area 3 - Parks/Leyland East West,Grounds Maint Cntrctrs Chgs,4657,WORKS AT WORDEN PARK - SHAWBROOK,10/11/2017,0000435689,"1,300.00",Revenue,RUSS ASPINALL T/A BEARDWOOD TREE SERVICE,00120443
South Ribble Council,http://statistics.data.gov.uk/doc/local-authority/30UN,Property Services,Energy Costs,2303,1/10/17 to 31/10/17,24/11/2017,0000435958,378.96,Revenue,SCOTTISH HYDRO ELECTRIC,130051
South Ribble Council,http://statistics.data.gov.uk/doc/local-authority/30UN,Property Services,Energy Costs,2307,CCL,24/11/2017,0000435958,18.47,Revenue,SCOTTISH HYDRO ELECTRIC,130051
South Ribble Council,http://statistics.data.gov.uk/doc/local-authority/30UN,Property Services,Energy Costs,2303,1/10/17 to 31/10/17,24/11/2017,0000435960,"3,095.07",Revenue,SCOTTISH HYDRO ELECTRIC,130051
South Ribble Council,http://statistics.data.gov.uk/doc/local-authority/30UN,Property Services,Energy Costs,2307,CCL,24/11/2017,0000435960,160.12,Revenue,SCOTTISH HYDRO ELECTRIC,130051
South Ribble Council,http://statistics.data.gov.uk/doc/local-authority/30UN,Property Services,Energy Costs,2303,1/10/17 to 31/10/17,24/11/2017,0000435964,"1,759.08",Revenue,SCOTTISH HYDRO ELECTRIC,130051
South Ribble Council,http://statistics.data.gov.uk/doc/local-authority/30UN,Property Services,Energy Costs,2307,CCL,24/11/2017,0000435964,97.04,Revenue,SCOTTISH HYDRO ELECTRIC,130051
South Ribble Council,http://statistics.data.gov.uk/doc/local-authority/30UN,Property Services,Energy Costs,2303,1/10/17 to 31/10/17,24/11/2017,0000435965,950.61,Revenue,SCOTTISH HYDRO ELECTRIC,130051
South Ribble Council,http://statistics.data.gov.uk/doc/local-authority/30UN,Property Services,Energy Costs,2307,CCL,24/11/2017,0000435965,49.05,Revenue,SCOTTISH HYDRO ELECTRIC,130051
South Ribble Council,http://statistics.data.gov.uk/doc/local-authority/30UN,Information Services,Peripherals,4269,Clearswift SECURE Email Gateway subscription  - Kaspersky (SGEM-KAV) 500 Users 1 Instances 28/11/17 - 27/11/18,17/11/2017,0000435824,"5,503.31",Revenue,SecureData Europe Ltd,132381
South Ribble Council,http://statistics.data.gov.uk/doc/local-authority/30UN,Healthy Communities,Consultancy Fees,4536,R & M 2017/18,22/11/2017,0000435595,"16,256.79",Revenue,SERCO LEISURE (OP) LTD,00094906
South Ribble Council,http://statistics.data.gov.uk/doc/local-authority/30UN,Information Services,Professional Fees,4520,Shredding of Confidential Waste 2017/18,01/11/2017,0000435440,385.62,Revenue,SHRED-IT LTD,00109134
South Ribble Council,http://statistics.data.gov.uk/doc/local-authority/30UN,Information Services,Professional Fees,4520,Shredding of Confidential Waste 2017/18,22/11/2017,0000435798,483.51,Revenue,SHRED-IT LTD,00109134
South Ribble Council,http://statistics.data.gov.uk/doc/local-authority/30UN,Regeneration,Professional Fees,4510,Waymarker Panels,29/11/2017,0000435682,390.45,Revenue,SIGNS PRESTON LTD T/A SIGNS EXPRESS CENTRAL LANCS,131706
South Ribble Council,http://statistics.data.gov.uk/doc/local-authority/30UN,Planning,Legal,4821,Professional Fees of: NAME REDACTED - re: Certificate of Lawfulness for Use of Land as a Microlight Airfield at Longfold farm,17/11/2017,0000435817,600.00,Revenue,LandmarkChambers,132158
South Ribble Council,http://statistics.data.gov.uk/doc/local-authority/30UN,Neighbourhood Admin & Support,Clothing- Uniforms & Laundry,4410,PORWEST GLOVE A622 CUT 5 - SIZE 9 (SRBC49),03/11/2017,0000435593,115.20,Revenue,SMART IMAGE WORKWEAR,00031503
South Ribble Council,http://statistics.data.gov.uk/doc/local-authority/30UN,Neighbourhood Admin & Support,Clothing- Uniforms & Laundry,4410,PORTWEST GLOVE SIZE 8 A622 CUT 5 - SRBC49,03/11/2017,0000435593,76.80,Revenue,SMART IMAGE WORKWEAR,00031503
South Ribble Council,http://statistics.data.gov.uk/doc/local-authority/30UN,Neighbourhood Admin & Support,Clothing- Uniforms & Laundry,4410,WATERPROOF TROUSERS SUPERTOUCH 18B4 YELLOW - SIZE LARGE (SRBC 25),03/11/2017,0000435593,60.75,Revenue,SMART IMAGE WORKWEAR,00031503
South Ribble Council,http://statistics.data.gov.uk/doc/local-authority/30UN,Neighbourhood Admin & Support,Clothing- Uniforms & Laundry,4410,WATERPROOF JACKET SUPERTOUCH YELLOW - SIZE LARGE (SRBC24),03/11/2017,0000435593,106.25,Revenue,SMART IMAGE WORKWEAR,00031503
South Ribble Council,http://statistics.data.gov.uk/doc/local-authority/30UN,Neighbourhood Admin & Support,Clothing- Uniforms & Laundry,4410,BALLISTIC TROUSERS - VULTURE - NAVY - SIZE 32T (SRBC 48),03/11/2017,0000435593,65.40,Revenue,SMART IMAGE WORKWEAR,00031503
South Ribble Council,http://statistics.data.gov.uk/doc/local-authority/30UN,Neighbourhood Admin & Support,Clothing- Uniforms & Laundry,4410,BALLISTIC TROUSERS - VULTURE - NAVY - SIZE 36T (SRBC48),03/11/2017,0000435593,65.40,Revenue,SMART IMAGE WORKWEAR,00031503
South Ribble Council,http://statistics.data.gov.uk/doc/local-authority/30UN,Environmental Health,External Contractors Charges,4570,Clean of ADDRESS REDACTED,24/11/2017,0000435841,540.00,Revenue,SMJ CONTRACT CLEANING,130044
South Ribble Council,http://statistics.data.gov.uk/doc/local-authority/30UN,Revenues Plus,Professional Fees,4510,IT Service Review,24/11/2017,0000435995,"7,500.00",Revenue,SOCITM LIMITED,00083195
South Ribble Council,http://statistics.data.gov.uk/doc/local-authority/30UN,Information Services,Peripherals,4241,Renewal of Veritas Licenses for 1 year (Expire: 17/12/17 and 06/01/18),24/11/2017,0000436038,"1,402.12",Revenue,SOFTWARE RENEWAL CENTRE,00112189
South Ribble Council,http://statistics.data.gov.uk/doc/local-authority/30UN,Healthy Communities,Consultancy Fees,4532,Leisure Services Fee 2017/18,22/11/2017,0000435487,"15,778.33",Revenue,SOUTH RIBBLE COMMUNITY LEISURE LTD,00094210
South Ribble Council,http://statistics.data.gov.uk/doc/local-authority/30UN,Healthy Communities,Consultancy Fees,4532,Leisure Services Fee 2017/18,22/11/2017,0000435606,"15,778.33",Revenue,SOUTH RIBBLE COMMUNITY LEISURE LTD,00094210
South Ribble Council,http://statistics.data.gov.uk/doc/local-authority/30UN,Shared Financial Services,Balance Sheet,0030,Monthly Deductions from Payroll October 2017,01/11/2017,0000435491,752.00,Revenue,SOUTH RIBBLE LABOUR PARTY LOCAL GOVERNM,00120663
South Ribble Council,http://statistics.data.gov.uk/doc/local-authority/30UN,Shared Financial Services,Balance Sheet,0030,NOV deductions,24/11/2017,0000436042,752.00,Revenue,SOUTH RIBBLE LABOUR PARTY LOCAL GOVERNM,00120663
South Ribble Council,http://statistics.data.gov.uk/doc/local-authority/30UN,Area 2 - Waste Transport/Eastern & Central Teams,Materials General,4040,100 RANSOMES SCREWS - BIN 1114 100 HAYTER NUTS & BOLTS - BIN1093 10 RANSOMES ROLLERS - BIN1268 ,22/11/2017,0000435752,279.20,Revenue,SPALDINGS,00070849
South Ribble Council,http://statistics.data.gov.uk/doc/local-authority/30UN,Area 2 - Waste Transport/Eastern & Central Teams,Materials General,4040,100 RANSOMES SCREWS - BIN 1114 100 HAYTER NUTS & BOLTS - BIN1093 10 RANSOMES ROLLERS - BIN1268 ,22/11/2017,0000435799,475.00,Revenue,SPALDINGS,00070849
South Ribble Council,http://statistics.data.gov.uk/doc/local-authority/30UN,Neighbourhood Admin & Support,Operational Furniture & Equip,4010,LITTER PICKER - 27242,29/11/2017,0000436063,467.50,Revenue,SPALDINGS,00070849
South Ribble Council,http://statistics.data.gov.uk/doc/local-authority/30UN,Neighbourhood Admin & Support,Operational Furniture & Equip,4010,HOE -C/W 60`` HANDLE BULLDOG PREMIER 3232/5N - 21045,29/11/2017,0000436063,77.50,Revenue,SPALDINGS,00070849
South Ribble Council,http://statistics.data.gov.uk/doc/local-authority/30UN,Property Services,Other Misc,4851,"Leyland Truck Trail -  Skills project development Schools Resource September 2017  @ 2,480 + VAT",01/11/2017,0000435304,"2,480.00",Revenue,STEMFirst Ltd,132095
South Ribble Council,http://statistics.data.gov.uk/doc/local-authority/30UN,HR & Communications,Advertising,4848,Communications support to members and officers before and during the Scrutiny Committee meeting held on 6 November 2017,22/11/2017,0000435923,400.00,Revenue,Stephen Parkinson,132398
South Ribble Council,http://statistics.data.gov.uk/doc/local-authority/30UN,Development Enterprise & Comm Mgnt,Advertising,4842,Management of Museum Website as per agreement: Six Months Renewal from 1-10-17,10/11/2017,0000435683,440.00,Revenue,STEPHEN WATSON,00113557
South Ribble Council,http://statistics.data.gov.uk/doc/local-authority/30UN,Regeneration,Professional Fees,4510,support with footpath improvements at Carr Wood,03/11/2017,0000435313,300.00,Revenue,Steven Dearnaley,132346
South Ribble Council,http://statistics.data.gov.uk/doc/local-authority/30UN,Regeneration,Professional Fees,4510,Tram Bridge Footpath Clearance,03/11/2017,0000435390,350.00,Revenue,Steven Dearnaley,132346
South Ribble Council,http://statistics.data.gov.uk/doc/local-authority/30UN,Development Enterprise & Comm Mgnt,Advertising,4842,October  2017 Social Media Management - as per invoice 22669,03/11/2017,0000435422,550.00,Revenue,STONE CREATE LTD,130896
South Ribble Council,http://statistics.data.gov.uk/doc/local-authority/30UN,Property Services,Rep & Maint Premises,2020,Attend the Civic Centre PR25 1DH to carry out works to supply & fit 2 top clips for the Dorma Moveo left hand partition,03/11/2017,0000435500,900.00,Revenue,STYLE MOVEABLE PARTITION SPECIALISTS,00119917
South Ribble Council,http://statistics.data.gov.uk/doc/local-authority/30UN,Revenues Plus,Balance Sheet,0001,,17/11/2017,0000435816,407.00,Revenue,T Forrest & Sons Ltd,132415
South Ribble Council,http://statistics.data.gov.uk/doc/local-authority/30UN,Area 2 - Waste Transport/Eastern & Central Teams,Materials General,4040,1 BRACKET - VK09AHJ - JFC9644 - AW,24/11/2017,0000435973,424.36,Revenue,TERBERG MATEC UK LTD,00058625
South Ribble Council,http://statistics.data.gov.uk/doc/local-authority/30UN,Regeneration,Professional Fees,4510,Maintenance of bee hives at Carr Wood,03/11/2017,0000435274,600.00,Revenue,The Bee centre,132104
South Ribble Council,http://statistics.data.gov.uk/doc/local-authority/30UN,Regeneration,Other Misc,4861,Event Support Longton Live 2017,22/11/2017,0000435839,500.00,Revenue,The Creative Network,130566
South Ribble Council,http://statistics.data.gov.uk/doc/local-authority/30UN,Regeneration,Other Misc,4851,Event Support Longton Live 2017,22/11/2017,0000435839,"1,500.00",Revenue,The Creative Network,130566
South Ribble Council,http://statistics.data.gov.uk/doc/local-authority/30UN,Regeneration,Other Misc,4861,Event Support Penwortham Live 2017,22/11/2017,0000435840,"1,000.00",Revenue,The Creative Network,130566
South Ribble Council,http://statistics.data.gov.uk/doc/local-authority/30UN,Regeneration,Other Misc,4851,Event Support Penwortham Live 2017,22/11/2017,0000435840,850.00,Revenue,The Creative Network,130566
South Ribble Council,http://statistics.data.gov.uk/doc/local-authority/30UN,HR & Communications,Legal,4821,PROVISION OF LEGAL SERVICES RELATING TO NAME REDACTED,01/11/2017,0000435415,350.00,Revenue,THOMPSONS SOLICITORS,132389
South Ribble Council,http://statistics.data.gov.uk/doc/local-authority/30UN,Legal,Publications,4142,,10/11/2017,0000435621,444.00,Revenue,THOMSON REUTERS,00034979
South Ribble Council,http://statistics.data.gov.uk/doc/local-authority/30UN,Healthy Communities,Advertising,4842,"Printing of scoot safe booklets and certificates. Booklets x930 = 416.00 +VAT Certificates x816 = 156.00 +VAT",24/11/2017,0000436011,572.00,Revenue,TOWNSEND PRINT SERVICES LTD,00037170
South Ribble Council,http://statistics.data.gov.uk/doc/local-authority/30UN,Housing,Cap Grant- Improve Grants,C570,Grant Payment Towards the Cost of Supply and Installation of External Wall Insulation to ADDRESS REDACTED,08/11/2017,0000435420,"4,000.00",Revenue,Trade Energy,132102
South Ribble Council,http://statistics.data.gov.uk/doc/local-authority/30UN,Housing,Cap Grant- Improve Grants,C570,Grant Payment Towards the Cost of Supply and Installation of External Wall Insulation to ADDRESS REDACTED,08/11/2017,0000435421,"4,000.00",Revenue,Trade Energy,132102
South Ribble Council,http://statistics.data.gov.uk/doc/local-authority/30UN,Housing,Cap Grant- Improve Grants,C570,Grant Payment Towards the Cost of Supply and Installation of External Wall Insulation to ADDRESS REDACTED,22/11/2017,0000435867,"4,000.00",Revenue,Trade Energy,132102
South Ribble Council,http://statistics.data.gov.uk/doc/local-authority/30UN,Housing,Cap Grant- Improve Grants,C570,Grant Payment Towards the Cost of Supply and Installation of External Wall Insulation to ADDRESS REDACTED,22/11/2017,0000435868,"4,000.00",Revenue,Trade Energy,132102
South Ribble Council,http://statistics.data.gov.uk/doc/local-authority/30UN,Housing,Cap Grant- Improve Grants,C570,Grant Payment Towards the Cost of Supply and Installation of External Wall Insulation to ADDRESS REDACTED,22/11/2017,0000435869,"4,000.00",Revenue,Trade Energy,132102
South Ribble Council,http://statistics.data.gov.uk/doc/local-authority/30UN,Housing,Cap Grant- Improve Grants,C570,GRANT PAYMENT TOWARDS THE COST OF SUPPLY AND INSTALLATION OF EXTERNAL WALL INSULATION ADDRESS,22/11/2017,0000435891,"4,000.00",Revenue,Trade Energy,132102
South Ribble Council,http://statistics.data.gov.uk/doc/local-authority/30UN,Property Services,Operational Furniture & Equip,4012,Annual Contract for 2017/2018 to cover the rental and the vending  machines at the Civic Centre,01/11/2017,0000435456,322.09,Revenue,VENDING ENTERPRISES,00101501
South Ribble Council,http://statistics.data.gov.uk/doc/local-authority/30UN,Democratic Services,Other Expenses,463A,Remembrance Sunday - Traffic Management Sunday 12th November 2017,22/11/2017,0000435925,600.00,Revenue,VENTBROOK LTD,131218
South Ribble Council,http://statistics.data.gov.uk/doc/local-authority/30UN,Property Services,Rep & Maint Premises,2020,"To undertake the works required to the wood burner and to sweep the chimney at the Bothy, Worden Park as per your quotation",22/11/2017,0000435926,659.50,Revenue,Vic Crompton,132373
South Ribble Council,http://statistics.data.gov.uk/doc/local-authority/30UN,Property Services,Rep & Maint Premises,2020,"To undertake the works to the wood burner and conduct a smoke test at North  Lodge, Worden Park as per your quotation  ",22/11/2017,0000435926,522.00,Revenue,Vic Crompton,132373
South Ribble Council,http://statistics.data.gov.uk/doc/local-authority/30UN,Information Services,Peripherals,4269,"Annual purchase order for ISDN lines, line rentals & call charges for period 01/04/17 - 31/03/18",10/11/2017,0000435703,"1,219.78",Revenue,VODAFONE RE:CABLE & WIRELESS UK,130810
South Ribble Council,http://statistics.data.gov.uk/doc/local-authority/30UN,Information Services,Peripherals,4247,"Moss Side link, internet & router November 2017",10/11/2017,0000435746,"1,312.66",Revenue,VODAFONE RE:CABLE & WIRELESS UK,130810
South Ribble Council,http://statistics.data.gov.uk/doc/local-authority/30UN,Area 3 - Parks/Leyland East West,Materials General,4046,SPRING BEDDING PLANTS AND BULBS AS PER ATTACHED LIST. FOR DELIVERY W/C MONDAY 2ND OCTOBER 2017,01/11/2017,0000435387,"2,439.90",Revenue,Walkers Oakfield Nurseries,131380
South Ribble Council,http://statistics.data.gov.uk/doc/local-authority/30UN,Property Services,Water Charges,2511,14/2/17 to 13/8/17,01/11/2017,0000435432,"3,476.62",Revenue,WATER PLUS,00029845
South Ribble Council,http://statistics.data.gov.uk/doc/local-authority/30UN,Property Services,Water Charges,2511,7/9/17 to 13/11/17,24/11/2017,0000435944,"1,602.29",Revenue,WATER PLUS,00029845
South Ribble Council,http://statistics.data.gov.uk/doc/local-authority/30UN,Legal,Legal,4821,PROFESSIONAL SERVICES (HARRASSMENT/DEFAMATION),17/11/2017,0000435793,429.00,Revenue,WEIGHTMANS LLP,00120867
South Ribble Council,http://statistics.data.gov.uk/doc/local-authority/30UN,Legal,Legal,4821,PROFESSIONAL SERVICES (HARRASSMENT/DEFAMATION),29/11/2017,0000436035,"3,048.60",Revenue,WEIGHTMANS LLP,00120867
South Ribble Council,http://statistics.data.gov.uk/doc/local-authority/30UN,Democratic Services,Other Misc,4421,"Services provided for June 2017 UKPGE by West Lancashire District Council to include preparation of, staffing of and hiring of ",10/11/2017,0000435713,"6,852.89",Revenue,West Lancashire District Council,00005610
South Ribble Council,http://statistics.data.gov.uk/doc/local-authority/30UN,Democratic Services,Other Misc,4423,"Services provided for June 2017 UKPGE by West Lancashire District Council inc preparation, printing and delivery of poll cards",10/11/2017,0000435713,"4,346.19",Revenue,West Lancashire District Council,00005610
South Ribble Council,http://statistics.data.gov.uk/doc/local-authority/30UN,Democratic Services,Other Misc,4425,Services provided for June 2017 UKPGE by West Lancashire District Council to include clerical functions assist staff recruitment,10/11/2017,0000435713,500.00,Revenue,West Lancashire District Council,00005610
South Ribble Council,http://statistics.data.gov.uk/doc/local-authority/30UN,Environmental Health,Advertising,4842,"400 White Ribbons = 200  100 Metal Badges = 130100 Metal Badges ( mixed heart, plain, and siren) = 130  Feather Flag",10/11/2017,0000435675,"1,031.00",Revenue,White Ribbon Campaign UK,131603
South Ribble Council,http://statistics.data.gov.uk/doc/local-authority/30UN,Building Control,Other Misc,485R,REC No 14672 - 10/07/17,15/11/2017,0000435707,255.32,Revenue,Witherslack Group,132401
South Ribble Council,http://statistics.data.gov.uk/doc/local-authority/30UN,Development Enterprise & Comm Mgnt,Other Misc,485K,"Copywriting and project management - 2,100 �	Drafting and gaining approval for articles based on a framework agreed between",03/11/2017,0000435513,"3,450.00",Revenue,WRITE ANGLE PR & MARKETING LTD,00095303
South Ribble Council,http://statistics.data.gov.uk/doc/local-authority/30UN,Area 2 - Waste Transport/Eastern & Central Teams,Materials General,4040,500 X RIVETS 3.2 X 8mm - BIN 161 (25.15) 1 x ROLL EMERY P80 ( 24.52) 50 x CUTTING DISCS (56.00) 12 x HACKSAW ,03/11/2017,0000435564,301.73,Revenue,WURTH UK LTD,00069106
South Ribble Council,http://statistics.data.gov.uk/doc/local-authority/30UN,Planning,Professional Fees,4510,Consultation charges,22/11/2017,0000435463,"3,000.00",Revenue,WYG ENVIRONMENT TRANSPORT LIMITED,130177
South Ribble Council,http://statistics.data.gov.uk/doc/local-authority/30UN,Planning,Professional Fees,4510,South Ribble Retainer Agreement Professional consultancy services 2017/18 Retainer Fee (as Agreed),08/11/2017,0000435516,"2,750.00",Revenue,WYG ENVIRONMENT TRANSPORT LIMITED,130177
